Cogmind - Beta 17.1 @@@ ROGUE MODE // 2026.09.15 @ 23:34:41 Player: 4R-ZE3 Result: Establishing 0b11! Performance ------------- Evolutions (9) 4500 Regions Visited (27) 5400 Robots Destroyed (539) 2695 Value Destroyed (35314) 35314 Prototype IDs (368) 7360 Alien Tech Used (6) 1200 Bonus (59712) 59712 TOTAL SCORE: 116181 Bonus ------- Triggered High Security 500 High Alert Combat Kills 14982 Follower Combat Kills 1486 Network Hubs Disabled 200 Met Data Miner 300 Met Zhirov 300 MAIN.C Attacked Proxy Base 500 Built Enhanced Grunts 300 A7 Reached Mainframe 300 Met R17 at Cetus 500 Met R17 at Research 2000 Destroyed Superfortress 15000 Destroyed MAIN.C Guards 500 Met MAIN.C 5000 Hacked MAIN.C 300 Destroyed MAIN.C Shell 5000 Destroyed MAIN.C 10000 Win 3000 Friendly Fire -456 Cogmind --------- Core Integrity 316/1600 Matter 5/300 Energy 1278/1291 System Corruption 15% Temperature Cool (15) Movement Walking (89) Location 0b11 Command Parts ------- > --- POWER (3) -------- Zero-point Reactor Singularity-Antimatter Reactor > --- PROPULSION (7) --- Centrium-HC Exoskeleton > --- UTILITY (9) ------ Armored Scrap Engine Heavy Regenerative Plating > --- WEAPON (6) ------- Micro-nuke Launcher Advanced Micro-nuke Launcher Burst Accelerated Rail Construct/C > --- INVENTORY (5) ---- Vortex Chain Reactor Advanced Particle Accelerator Graphene Brace Helical Railgun Peak State ------------ > --- POWER ------------ Singularity-Antimatter Reactor > --- PROPULSION ------- Centrium-HC Exoskeleton > --- UTILITY ---------- Armored Scrap Engine Concept Antigrav Storage Unit Concept Countertargeting System Experimental Core Analyzer Concept Cloak Mesh Concept Energy Mantle > --- WEAPON ----------- Concept Lightning Penetrator Concept Heavy Railcannon Burst Accelerated Rail Construct/C > --- INVENTORY -------- High-density Centrium Heavy Treads Concept Combat Aerolev Unit Experimental Cooling System Concept Thermoelectric Network Advanced Particle Accelerator Experimental Kinecellerator Advanced Transmission Jammer Experimental ECM Suite Concept Phase Shift Module Concept Cloak Mesh Graphene Brace Concept Beam Splitter Experimental EM Shield Concept Energy Mantle Concept Antimissile System Advanced Component Analysis Suite Concept Matter Streamer Crosscalibrator Transdimensional Reconstructor Concept Plasma Driver Concept XC Strikerail Concept XC Strikerail Concept Helical Railcannon Concept Helical Railcannon [Rating: 265] Favorites ----------- Power Constructs Engine Ion Engine Power Core Light Nuclear Core Reactor Constructs Propulsion Constructs Treads Armored Treads Leg Constructs Wheel Wheel Utility Armored Scrap Engine Device Armored Scrap Engine Storage Huge Storage Unit Processor Advanced Signal Interpreter Protection Centrium Medium Armor Plating Artifact Phase Redirector Weapon Constructs Energy Gun Heavy Particle Gun Energy Cannon Enhanced Nova Cannon Ballistic Gun Assault Rifle Ballistic Cannon Constructs Launcher Advanced Micro-nuke Launcher Special Weapon Advanced Remote Datajack Impact Weapon Great Maul Slashing Weapon Sigix Broadsword Build | -11 -10 -10 -8 -8 -8 -6 -6 -6 -6 -5 -5 -5 -5 -5 -4 -4 -4 -4 -4 -4 -3 -3 -2 -2 -2 -1 -1 ------- Run | Yrd Mat Sub Mat Sto Rec Fac Low Low Dat Pro Fac Upp Upp Zhi Pro Fac Ext Cet Arc Hub Res Qua Res Tes Frg Acc Com Slots Evolved 18 | . . . 4 . . 4 . . . . 2 . . . . 2 . . . . 2 . 2 . . 2 . Power 2 | . . . . . . 1 . . . . . . . . . 1 . . . . . . . . . . . Propulsion 5 | . . . 2 . . 1 . . . . 1 . . . . . . . . . 1 . . . . . . Utility 7 | . . . 2 . . 2 . . . . . . . . . 1 . . . . . . . . . 2 . Weapon 4 | . . . . . . . . . . . 1 . . . . . . . . . 1 . 2 . . . . Parts Attached 196 | 6 5 7 30 10 4 14 . . . 2 6 . . 2 . 1 5 3 . 5 2 14 7 8 28 10 27 Power 15 | . 1 2 3 . . 2 . . . . . . . . . . . 1 . 1 . 1 . . . 2 2 Engine 7 | . 1 2 2 . . 2 . . . . . . . . . . . . . . . . . . . . . Core 1 | . . . 1 . . . . . . . . . . . . . . . . . . . . . . . . Reactor 7 | . . . . . . . . . . . . . . . . . . 1 . 1 . 1 . . . 2 2 Propulsion 21 | 2 1 2 10 5 1 . . . . . . . . . . . . . . . . . . . . . . Treads 19 | 2 1 2 9 5 . . . . . . . . . . . . . . . . . . . . . . . Leg 1 | . . . 1 . . . . . . . . . . . . . . . . . . . . . . . . Wheel 1 | . . . . . 1 . . . . . . . . . . . . . . . . . . . . . . Hover . | . . . . . . . . . . . . . . . . . . . . . . . . . . . . Flight . | . . . . . . . . . . . . . . . . . . . . . . . . . . . . Utility 119 | 1 2 1 7 1 2 12 . . . 2 6 . . 2 . 1 5 1 . 4 2 12 3 7 23 7 18 Device 81 | . 1 1 2 1 2 5 . . . 1 6 . . 1 . 1 4 . . 3 1 10 2 6 19 6 9 Storage 8 | 1 1 . 1 . . 1 . . . . . . . . . . . . . . 1 . . . 1 . 2 Processor 14 | . . . 2 . . 2 . . . . . . . . . . . . . 1 . . 1 . 3 1 4 Hackware . | . . . . . . . . . . . . . . . . . . . . . . . . . . . . Protection 15 | . . . 2 . . 4 . . . 1 . . . 1 . . 1 1 . . . 1 . 1 . . 3 Artifact 1 | . . . . . . . . . . . . . . . . . . . . . . 1 . . . . . Weapon 41 | 3 1 2 10 4 1 . . . . . . . . . . . . 1 . . . 1 4 1 5 1 7 Energy Gun 17 | 2 . 1 8 1 . . . . . . . . . . . . . . . . . . 3 . 1 . 1 Energy Cannon 3 | . . . . . . . . . . . . . . . . . . . . . . . . . . . 3 Ballistic Gun 8 | 1 1 1 1 3 . . . . . . . . . . . . . . . . . . . . 1 . . Ballistic Cannon 4 | . . . . . . . . . . . . . . . . . . . . . . 1 . . 2 . 1 Launcher 3 | . . . . . . . . . . . . . . . . . . . . . . . . . 1 . 2 Special Weapon 2 | . . . . . . . . . . . . . . . . . . 1 . . . . . . . 1 . Impact Weapon 3 | . . . 1 . 1 . . . . . . . . . . . . . . . . . . 1 . . . Slashing Weapon 1 | . . . . . . . . . . . . . . . . . . . . . . . 1 . . . . Piercing Weapon . | . . . . . . . . . . . . . . . . . . . . . . . . . . . . Special Melee Weapon . | . . . . . . . . . . . . . . . . . . . . . . . . . . . . Unidentified Prototypes 28 | . . . 3 . 1 . . . . . . . . 2 . . . 1 . 4 . 1 1 5 7 . 3 Corrupted Parts 5 | . . . . . . . . . . . . . . . . . . . . . . 4 . . . . 1 System Corruption 31 | . . . . . . . . . . . . . . . . . . . . . . 28 . . . . 3 Parts Lost 64 | . 1 8 9 1 1 2 . . . 4 3 1 . . . . 2 . . . . 1 . . 12 1 18 Power 10 | . . 2 1 . . . . . . 2 . . . . . . . . . . . . . . 1 1 3 Propulsion 8 | . 1 2 4 . . 1 . . . . . . . . . . . . . . . . . . . . . Utility 37 | . . 1 2 1 1 1 . . . 2 3 1 . . . . 2 . . . . 1 . . 8 . 14 Weapon 9 | . . 3 2 . . . . . . . . . . . . . . . . . . . . . 3 . 1 Highest Loss Streak 5 | . 1 5 4 1 1 2 . . . 2 2 1 . . . . 1 . . . . 1 . . 3 1 5 To Critical Strikes 1 | . . . . . . . . . . . . . . . . . . . . . . . . . 1 . . Average Backups 21 | 2 10 13 21 24 11 23 24 24 25 23 21 19 24 22 21 24 22 24 24 23 23 23 23 22 21 22 23 Power 1 | 1 1 2 2 2 1 1 3 2 2 2 2 1 1 . . . . . . . . . 1 . . . 1 Propulsion 3 | . 3 3 5 5 4 8 7 7 7 5 2 3 6 5 3 3 1 1 3 3 1 2 1 . 1 1 3 Utility 10 | . 1 3 3 1 2 6 6 7 7 6 7 5 6 7 7 9 10 11 11 11 15 14 12 13 15 16 14 Weapon 5 | . 2 2 9 15 2 5 7 8 9 9 8 8 9 9 9 9 7 8 7 7 4 5 5 5 2 3 3 Tool/Special . | . . . . . . . . . . . . . . . . . . . . . . . . . . . . Unused Backups 221 | . . . 14 3 23 12 5 1 . 8 11 4 . 7 1 . 13 2 2 5 10 33 . 13 20 8 26 Power 22 | . . . 4 . 2 1 2 . . . . 1 . 2 . . . 1 1 1 1 2 . 1 1 . 2 Propulsion 64 | . . . 5 1 8 5 . . . 4 6 1 . 5 . . 6 . . . 5 7 . 3 3 1 4 Utility 38 | . . . 2 1 2 1 . . . 1 . . . . 1 . 1 1 . 2 1 7 . 3 6 1 8 Weapon 94 | . . . 2 1 11 5 3 1 . 3 5 2 . . . . 6 . 1 2 3 17 . 6 10 4 12 Tool/Special 3 | . . . 1 . . . . . . . . . . . . . . . . . . . . . . 2 . Average Slot Usage (%) 53 | . 85 97 91 96 71 56 53 53 53 52 46 47 47 46 47 45 46 47 52 51 47 44 44 42 41 46 50 Engine 1 | . 10 13 7 . . 6 6 6 6 2 . 4 5 2 . . . . . . . . . . . . . Core 1 | . . . 1 9 8 3 . . . . . . . . . . . . . . . . . . . 1 . Reactor 3 | . . . . . . . . . . 2 5 . . 2 5 5 4 5 10 9 9 6 4 4 3 4 4 Treads 4 | . 28 27 31 36 19 1 . . . . . 4 5 3 . . . . 5 5 3 . . . 2 . . Leg 3 | . . . 1 . . 3 6 6 6 6 4 . . 1 5 5 5 2 . . . 3 4 3 2 4 4 Device 17 | . 3 13 9 18 18 17 19 20 20 15 13 17 17 16 17 19 18 15 20 18 14 19 17 16 16 24 17 Storage 5 | . 14 14 9 9 9 6 6 6 6 6 5 5 5 5 5 5 5 5 5 5 4 4 4 4 4 4 4 Processor 5 | . . . 5 . . 5 6 6 6 6 5 5 5 5 5 5 5 5 5 5 9 2 3 4 4 2 8 Protection 1 | . . . 7 5 . 1 . . . 3 2 . . . . . 1 5 . 1 . . . . . . 1 Energy Cannon 2 | . . . . . . 2 5 6 6 5 3 2 5 5 5 5 . 3 5 5 1 1 4 2 . 2 2 Ballistic Gun 1 | . 22 20 . 2 4 . . . . . . . . . . . . . . . . . . . . . . Ballistic Cannon 2 | . . . . . 5 3 . . . . 1 2 . . . . 4 1 . . 2 2 . 1 5 1 3 Launcher 1 | . . . . . . . . . . . . . . . . . . . . . . . . . . . 3 Peak Build Rating 265 | 5 8 9 34 40 47 78 84 84 81 112 112 102 86 99 100 102 118 152 152 153 154 190 213 216 265 239 259 Average Rating 161 | 4 6 8 26 37 40 67 76 81 81 98 105 86 85 88 94 100 106 127 145 147 150 171 203 207 223 225 248 On Entrance 103 | . 5 8 9 32 38 47 78 84 81 81 112 92 85 86 99 94 102 118 152 146 148 151 188 202 212 212 237 Avg Prop Armor Cover (%) 4 | . . . 4 . . . . . . . . . . . . . . . . . . . . . . . . Naked Turns . | . . . . . . . . . . . . . . . . . . . . . . . . . . . . Heaviest Build 234 | 9 30 30 107 104 96 103 103 103 103 116 126 112 110 111 111 111 132 178 178 178 158 199 198 183 206 125 234 Greatest Support 380 | 40 40 40 82 80 80 110 77 77 77 77 143 156 156 197 152 152 152 194 194 194 262 278 278 278 352 380 380 Greatest Overweight (x) 9 | 1 . 1 1 1 9 2 1 1 1 1 1 . . . . . 1 2 . . . . . . . . . Average Overweight (x) . | . . . . 1 1 . 1 1 1 1 . . . . . . . 1 . . . . . . . . . Largest Inventory Capacity 25 | 8 15 15 25 25 25 25 25 25 25 25 25 25 25 25 25 25 25 25 25 25 25 25 25 25 25 25 25 Average Capacity 24 | 7 13 15 23 25 25 25 25 25 25 25 25 25 25 25 25 25 25 25 25 25 25 25 25 25 25 25 24 Most Carried 25 | 5 15 15 25 25 25 25 25 25 25 25 25 22 25 25 23 25 25 25 25 25 25 25 25 25 25 25 25 Average Carried 22 | 2 10 13 21 24 11 23 24 24 25 23 21 19 24 22 21 24 22 24 24 24 23 24 24 24 22 23 24 Final Capacity 25 | 8 15 15 25 25 25 25 25 25 25 25 25 25 25 25 25 25 25 25 25 25 25 25 25 25 25 25 5 Final Carried 25 | 5 15 12 25 25 25 25 24 25 25 25 21 22 25 21 23 25 25 25 25 25 23 25 24 24 14 25 5 Scrap Engine Consumption 416 | . . . . . 63 29 6 1 . 25 24 9 . 8 1 . 24 16 2 7 11 41 7 20 47 9 66 Constructs Created 4 | . . . . . 3 . . . . 1 . . . . . . . . . . . . . . . . . Constructs Modified 183 | . . . . . 21 11 6 1 . 11 9 6 . 4 . . 11 8 . . 7 20 4 8 21 5 30 Class Distribution -------------------- 68% | Construct 10% | Scavenger-Construct 9% | Mutant 6% | Commander-Construct Dominant Class ---------------- Mutant | -10/Materials Mutant | -10/Subcaves Scavenger-Mutant | -8/Materials Mutant | -8/Storage Mutant | -8/Recycling Construct | -6/Factory Construct | -6/Lower Caves Construct | -6/Lower Caves Construct | -6/Data Miner Construct | -5/Proximity Caves Construct | -5/Factory Construct | -5/Upper Caves Construct | -5/Upper Caves Construct | -5/Zhirov Construct | -4/Proximity Caves Infiltrator-Construct | -4/Factory Commander-Construct | -4/Extension Commander-Construct | -4/Cetus Commander-Construct | -4/Archives Commander-Construct | -4/Hub_04(d) Construct | -3/Research Construct | -3/Quarantine Construct | -2/Research Construct | -2/Testing Construct | -2/Protoforge Construct | -1/Access Construct | -1/Command Resources | -11 -10 -10 -8 -8 -8 -6 -6 -6 -6 -5 -5 -5 -5 -5 -4 -4 -4 -4 -4 -4 -3 -3 -2 -2 -2 -1 -1 ----------- Run | Yrd Mat Sub Mat Sto Rec Fac Low Low Dat Pro Fac Upp Upp Zhi Pro Fac Ext Cet Arc Hub Res Qua Res Tes Frg Acc Com Matter Collected 18230 | 204 296 124 429 161 329 452 140 84 . 87 312 473 118 . 403 8 715 90 58 224 287 729 388 688 4591 2255 4585 Remotely 1073 | . . . . . . . . . . . . . . . . . . . . . . . . . 1073 . . Salvage Created 34991 | . 489 248 1309 1141 1357 1189 706 130 . 1621 2083 487 208 . 459 . 1379 352 218 789 680 2577 839 1074 9583 3552 2521 Parts 1545 | . 27 17 62 63 86 48 17 5 . 76 122 30 8 . 34 . 60 12 10 33 34 124 44 32 442 82 77 Haulers Intercepted 7 | . 2 . 3 2 . . . . . . . . . . . . . . . . . . . . . . . Recyclers Shooed 5 | . . . 1 . 4 . . . . . . . . . . . . . . . . . . . . . . Parts Field Recycled . | . . . . . . . . . . . . . . . . . . . . . . . . . . . . Retrieved Matter . | . . . . . . . . . . . . . . . . . . . . . . . . . . . . Parts Self-Destructed 127 | . . 8 . . . . 6 . . 49 . 31 1 . 32 . . . . . . . . . . . . Prevented 116 | . . . . . . . 10 6 . 100 . . . . . . . . . . . . . . . . . Parts Restored 3 | . . . . . . . . . . . . . . . . . . . . . . . . . 3 . . Faulty 3 | . . . . . . . . . . . . . . . . . . . . . . . . . 3 . . Kills | -11 -10 -10 -8 -8 -8 -6 -6 -6 -6 -5 -5 -5 -5 -5 -4 -4 -4 -4 -4 -4 -3 -3 -2 -2 -2 -1 -1 ------- Run | Yrd Mat Sub Mat Sto Rec Fac Low Low Dat Pro Fac Upp Upp Zhi Pro Fac Ext Cet Arc Hub Res Qua Res Tes Frg Acc Com Combat Hostiles Destroyed 445 | . 10 6 32 20 3 16 11 2 . 22 33 10 1 . 11 . 14 5 2 5 9 32 15 15 122 38 11 Melee 5 | . . . . . . . . . . . . . . . . . . . . . . . 4 . 1 . . Guns 66 | . 10 5 30 18 3 . . . . . . . . . . . . . . . . . . . . . . Cannons 327 | . . . . . . 16 9 1 . 20 32 10 1 . 11 . 14 3 2 5 9 20 11 11 115 26 11 AOE 8 | . . 1 2 . . . . . . . . . . . . . . . . . . . . . 5 . . Classes Destroyed 31 | . 4 1 2 2 . 2 1 2 . 2 . . 1 . . . 1 . . 1 . 1 . 1 8 2 . Worker 10 | . . . . . . . . . . . . . . . . . . . . 1 2 6 . . . . 1 Builder 28 | . 1 . . . 15 . . . . . . . . . . . 1 . . 1 2 2 . 1 3 2 . Hauler 7 | . 2 . 3 2 . . . . . . . . . . . . . . . . . . . . . . . Recycler 19 | . . . . 1 9 1 . . . . 2 . . . . . 1 . . 2 . 1 . . . 2 . Carrier 3 | . . . . . . . . . . . . . . . . . . . . . . . . . 1 2 . Mechanic 7 | . . . . . . . . . . 1 . . . . . . . . . . . 2 . . 4 . . Operator 4 | . . . . 1 . . . . . . . . . . . . 1 . 1 . . . 1 . . . . Drone 8 | . . . . . . . . . . . . . . . . . . . . . . . . . 7 1 . Watcher 20 | . . . . . . 2 . . . . 1 . . . . . 1 . . . 2 . 2 1 2 8 1 Swarmer 54 | . 2 . 11 2 . . 2 . . 2 9 6 1 . 8 . . . . . 5 . 3 . 3 . . Saboteur 1 | . . . . . . . . . . . . . . . . . . . . . . . . . 1 . . Grunt 108 | . 8 2 18 11 . 9 5 . . 4 2 1 . . . . 8 . . . 2 7 . . 24 7 . Brawler 15 | . . . . . . . 3 . . 4 1 . . . . . . . . . . . . . 7 . . Duelist 15 | . . . 1 1 . 1 1 . . 3 1 . . . . . 1 . . . . . . . 5 1 . Protector 10 | . . . . . . . . . . 3 . . . . . . . . . . . . . . 5 2 . Researcher 1 | . . . . . . . . . . . . . . . . . . . . . . . . . 1 . . Sentry 43 | . . . 2 6 2 5 1 . . 1 4 1 . . 1 . 2 . 2 1 . . 2 . 10 2 1 Demolisher 1 | . . . . . . . . . . . . . . . . . . . . . . . . . . 1 . Specialist 3 | . . . . . . . . . . . . . . . . . . . . . . 3 . . . . . Hunter 31 | . . . . . . . . 1 . 2 6 2 . . 2 . . 1 . 1 2 6 2 . 2 4 . Programmer 77 | . . . . . . 1 . . . 3 10 . . . . . 1 . . . . 4 7 14 15 18 4 Behemoth 2 | . . . . . . . . . . . . . . . . . 1 . . . . . 1 . . . . Cetus Guard 4 | . . . . . . . . . . . . . . . . . . 4 . . . . . . . . . Quarantine Guard 12 | . . . . . . . . . . . . . . . . . . . . . . 12 . . . . . M Guard 2 | . . . . . . . . . . . . . . . . . . . . . . . . . . . 2 Lightning 3 | . . . . . . . . . . . . . . . . . . . . 3 . . . . . . . Hotshot 12 | . . . . . . . . . . . . . . . . . . . . . . . . . 12 . . Decapitator 12 | . . . . . . . . . . . . . . . . . . . . . . . . . 12 . . Immortal 2 | . . . . . . . . . . . . . . . . . . . . . . . . . 2 . . Overlord 1 | . . . . . . . . . . . . . . . . . . . . . . . . . 1 . . Combat Programmer 2 | . . . . . . . . . . . . . . . . . . . . . . . . . . . 2 Executioner 2 | . . . . . . . . . . . . . . . . . . . . . . . . . . 2 . Alpha 7 4 | . . . . . . . . . . . . . . . . . . . . . . . . . 4 . . Fortress 1 | . . . . . . . . . . . . . . . . . . . . . . . . 1 . . . V-Series 11 | . . . . . . . . . . . . . . . . . . . . . . . . . 11 . . Subdweller 5 | . . 4 . . 1 . . . . . . . . . . . . . . . . . . . . . . Samaritan 4 | . . . . . . . . . . . . . 4 . . . . . . . . . . . . . . Thug 2 | . . . . . . . . . . . . . . . . . 1 . . 1 . . . . . . . Mutant 2 | . . . . . . . . 1 . 1 . . . . . . . . . . . . . . . . . Best Kill Streak 19 | . 5 2 10 5 4 3 7 1 . 6 6 3 1 . 4 . 5 2 3 5 11 9 4 3 19 12 3 Combat Bots Only 17 | . 4 2 10 5 1 3 7 1 . 6 5 3 1 . 4 . 4 2 2 3 5 5 4 3 17 12 3 Max Kills in Single Turn 5 | . 1 1 2 1 1 1 1 1 . 1 2 1 1 . 1 . 2 1 1 3 1 3 1 1 5 3 1 Gunslinging 1 | . . . 1 . . . . . . . . . . . . . . . . . . . . . . . . Exploded 5 | . . 1 1 . . . . . . . . . . . . . . . . . . . . . 5 . . Melee 1 | . . . . . . . . . . . . . . . . . . . . . . . 1 . 1 . . Uniques/NPCs Destroyed 3 | . . . . . . . . . . . . . . . . . . . . . . . . . 1 . 2 Superfortress (-2/Protoforge) MAIN.C Shell (-1/Command) MAIN.C (-1/Command) Combat | -11 -10 -10 -8 -8 -8 -6 -6 -6 -6 -5 -5 -5 -5 -5 -4 -4 -4 -4 -4 -4 -3 -3 -2 -2 -2 -1 -1 -------- Run | Yrd Mat Sub Mat Sto Rec Fac Low Low Dat Pro Fac Upp Upp Zhi Pro Fac Ext Cet Arc Hub Res Qua Res Tes Frg Acc Com Hostile Shots Fired 3339 | . 53 58 168 114 6 254 24 7 . 180 258 51 8 . 38 2 70 60 1 21 56 217 128 105 1146 194 120 Missed 1109 | . 16 15 45 23 2 80 6 1 . 71 89 10 4 . 11 . 24 29 . 2 20 94 38 21 380 66 62 Intercepted 12 | . . . . . . . . . . . . . . . . . . . . . . . . . 1 . 11 Hits 2230 | . 37 43 123 91 4 174 18 6 . 109 169 41 4 . 27 2 46 31 1 19 36 123 90 84 766 128 58 Melee 67 | . . . 2 3 . . . . . 2 4 . . . . . 2 . . . . . . . 54 . . Projectile 2163 | . 37 43 121 88 4 174 18 6 . 107 165 41 4 . 27 2 44 31 1 19 36 123 90 84 712 128 58 AOE 22 | . . . . . . . . . . . 1 . . . . . . . . . . . . . 19 . 2 Critical Strikes 157 | . 1 . 4 4 . 1 . . . 9 9 1 . . 2 1 7 3 . 2 2 8 6 3 80 7 7 Actively Blocked 35 | . . . . . . 1 . . . . . . . . . . . . . . . . . . 33 1 . Part Disruptions 1 | . . . . . . . . . . . . . . . . . . . . . . 1 . . . . . Damage Taken 40225 | . 455 830 1649 1308 81 1721 356 91 . 1892 2742 674 60 . 424 143 957 496 20 592 784 1499 755 511 12052 1539 8594 Core 3844 | . 29 149 190 85 . 154 . 16 . 155 245 101 . . 34 . 190 47 . 101 77 82 67 44 794 169 1115 Absorbed by Shields 13273 | . . . . . . . . . . . 102 . . . . . 174 347 8 120 . 854 432 227 8147 68 2794 Redirected to Shielding 138 | . . . 45 . . 93 . . . . . . . . . . . . . . . . . . . . . Ignored by Resistances 6976 | . . . 84 61 . . . . . 44 374 49 . . . . . . . . . 328 739 1370 2370 1268 289 Regen/Repaired (Parts) 19297 | . . . . . 15 867 103 32 . 1275 1303 887 . 103 100 . 980 227 . 49 873 948 416 592 4998 2974 2555 Core Remaining (%) 56 | 100 . 28 . . 50 . . . . 61 . . . . 62 . . . . 70 . 87 . . 34 . 19 Volleys Fired 2011 | . 38 32 77 63 123 97 33 6 . 120 118 39 16 . 26 7 60 21 6 37 52 95 43 97 433 112 260 Largest 2 | . 2 2 2 2 2 1 1 1 . 1 1 1 1 . 1 1 1 1 1 1 1 2 1 1 2 1 1 Hottest 454 | . 60 80 128 118 90 90 65 65 . 65 65 65 65 . 65 65 65 72 72 72 72 77 67 67 439 454 454 Shots Fired 2220 | . 76 64 152 126 131 97 33 6 . 120 117 39 16 . 26 7 60 21 6 37 52 96 44 96 428 112 258 Gun 435 | . 76 64 152 126 16 . . . . . . . . . . . . . . . . . 1 . . . . Cannon 1689 | . . . . . 115 97 33 6 . 120 117 39 16 . 26 7 60 21 6 37 52 96 43 96 427 111 164 Launcher 93 | . . . . . . . . . . . . . . . . . . . . . . . . . 1 . 92 Special 3 | . . . . . . . . . . . . . . . . . . . . . . . . . . 1 2 Kinetic 1235 | . 65 56 . 4 131 97 . . . 73 77 19 . . . . 57 . . . 38 61 . . 388 31 138 Thermal 589 | . . . 134 122 . . . . . . 40 20 16 . 26 7 3 8 6 37 14 5 39 50 39 . 23 Explosive 93 | . . . . . . . . . . . . . . . . . . . . . . . . . 1 . 92 Electromagnetic 300 | . 11 8 18 . . . 33 6 . 47 . . . . . . . 13 . . . 30 5 46 . 80 3 Robot Hit Streak 40 | . 8 14 17 19 9 9 10 4 . 6 11 9 10 . 8 . 6 6 7 5 13 10 5 10 31 19 40 Robot Miss Streak 11 | . 3 2 2 4 6 3 4 1 . 4 5 2 3 . 1 . 7 4 3 4 2 2 3 5 11 3 3 Penetration Max 4 | . . . . . . . . . . 1 1 . . . . . 2 . . . . 4 . . 2 2 . Secondary Targets 11 | . 3 1 6 1 . . . . . . . . . . . . . . . . . . . . . . . Max Gunslinging Chain 1 | . 1 1 1 1 . . . . . . . . . . . . . . . . . . . . . . . Shots Hit Robots 1267 | . 50 55 114 90 63 56 18 4 . 75 63 18 8 . 13 . 33 14 2 19 32 60 31 36 264 61 88 Core Hits 587 | . 20 15 58 39 32 27 9 2 . 30 25 7 3 . 10 . 16 3 3 10 9 34 13 10 158 25 29 Critical Kills 9 | . . . . . 1 1 . . . . . . . . . . . . . . . . . . 7 . . Critical Parts Destroyed 12 | . . . . . 1 . . . . 2 1 . . . . . . . . . . . . . 8 . . Critical Strikes 38 | . . . 2 4 2 1 1 . . 2 1 . . . . . . . . . . . 1 . 22 2 . Burn 6 | . . . 2 4 . . . . . . . . . . . . . . . . . . . . . . . Destroy 24 | . . . . . 2 1 . . . 2 1 . . . . . . . . . . . . . 18 . . Blast 4 | . . . . . . . . . . . . . . . . . . . . . . . . . 4 . . Corrupt 3 | . . . . . . . 1 . . . . . . . . . . . . . . . . . . 2 . Sever 1 | . . . . . . . . . . . . . . . . . . . . . . . 1 . . . . Melee Attacks 29 | . . . 1 1 1 . . . . . . . . . . . . . . . . . 23 3 . . . Kinetic 2 | . . . . . . . . . . . . . . . . . . . . . . . . 2 . . . Impact 3 | . . . 1 1 1 . . . . . . . . . . . . . . . . . . . . . . Slashing 24 | . . . . . . . . . . . . . . . . . . . . . . . 23 1 . . . Piercing . | . . . . . . . . . . . . . . . . . . . . . . . . . . . . Sneak Attacks . | . . . . . . . . . . . . . . . . . . . . . . . . . . . . Combat Hostiles . | . . . . . . . . . . . . . . . . . . . . . . . . . . . . Follow-up Attacks . | . . . . . . . . . . . . . . . . . . . . . . . . . . . . Damage Inflicted 145924 | . 675 758 2092 1747 2190 2857 930 192 . 4888 5296 1536 648 . 1053 . 3801 1330 357 2958 3049 7885 4091 4233 63503 14533 15322 Guns 5348 | . 675 688 1940 1747 298 . . . . . . . . . . . . . . . . . . . . . . Cannons 137955 | . . . . . 1892 2857 930 192 . 4888 5296 1536 648 . 1053 . 3801 1330 357 2479 3049 7645 3285 4152 62847 14396 15322 Explosions 1761 | . . 70 152 . . . . . . . . . . . . . . . . 479 . 240 . 54 656 110 . Melee 833 | . . . . . . . . . . . . . . . . . . . . . . . 806 27 . . . Ramming 27 | . . . . . . . . . . . . . . . . . . . . . . . . . . 27 . Kinetic 99493 | . 566 622 . 59 2190 2857 . . . 3555 3334 807 . . . . 3599 . . . 2747 5484 . 27 55689 4119 13838 Thermal 25849 | . . 70 1890 1688 . . . . . . 1962 729 648 . 1053 . 202 666 357 2479 302 . 3285 2514 7158 . 846 Explosive 1060 | . . . . . . . . . . . . . . . . . . . . . . 240 . 54 656 110 . Electromagnetic 18689 | . 109 66 202 . . . 930 192 . 1333 . . . . . . . 664 . 479 . 2161 . 1638 . 10277 638 Impact . | . . . . . . . . . . . . . . . . . . . . . . . . . . . . Slashing 806 | . . . . . . . . . . . . . . . . . . . . . . . 806 . . . . Piercing . | . . . . . . . . . . . . . . . . . . . . . . . . . . . . Highest Corruption 28 | . 2 2 . . . 1 1 1 1 4 2 . . . . . 1 . . 5 . 28 4 7 28 3 15 Average Corruption 4 | . 2 2 . . . 1 1 1 1 2 1 . . . . . 1 . . 4 . 23 3 5 13 1 3 Corruption Purged 49 | . . . . . . . . . . . 2 . . . . . 1 . . . . . . 8 . . 38 Corruption Blocked . | . . . . . . . . . . . . . . . . . . . . . . . . . . . . Effects 306 | . . 12 . . . 1 16 8 1 30 4 . . . . . 11 . . 4 . 19 16 32 100 17 35 Message Errors 87 | . . 1 . . . . 5 4 1 9 2 . . . . . 5 . . . . 4 1 8 34 5 8 Matter Fused 82 | . . 3 . . . 1 3 3 . 7 1 . . . . . 2 . . 3 . 7 3 9 22 5 13 Heat Flow Errors 20 | . . 2 . . . . . . . . . . . . . . 2 . . . . 1 1 3 6 2 3 Energy Discharges 32 | . . 1 . . . . 4 1 . 4 . . . . . . 1 . . . . 2 2 5 9 1 2 Parts Rejected 7 | . . . . . . . 1 . . 1 . . . . . . . . . . . . 1 . 4 . . Parts Fused 4 | . . . . . . . 1 . . . . . . . . . 1 . . . . 1 1 . . . . Data Loss (minor) 32 | . . 1 . . . . 1 . . 4 . . . . . . . . . . . 3 6 4 6 3 4 Data Loss (major) 15 | . . 2 . . . . . . . 4 . . . . . . . . . . . 1 . 2 4 . 2 Misfires 3 | . . 1 . . . . . . . . . . . . . . . . . . . . 1 . 1 . . Alerts 9 | . . . . . . . 1 . . 1 . . . . . . . . . 1 . . . . 4 1 1 Misdirections 2 | . . . . . . . . . . . . . . . . . . . . . . . . . 2 . . Weapon Failures 13 | . . 1 . . . . . . . . 1 . . . . . . . . . . . . 1 8 . 2 Overload Shots . | . . . . . . . . . . . . . . . . . . . . . . . . . . . . Overflow Damage 23727 | . . . . . 222 80 11 . . 251 1048 300 271 . 47 . 272 147 . 359 493 893 942 1260 9546 5414 2171 Projectiles 23322 | . . . . . 222 80 11 . . 251 1048 300 271 . 47 . 272 147 . 356 493 740 795 1260 9444 5414 2171 Explosions 258 | . . . . . . . . . . . . . . . . . . . . 3 . 153 . . 102 . . Melee 147 | . . . . . . . . . . . . . . . . . . . . . . . 147 . . . . Knockbacks 193 | . . . . . 8 5 . . . 15 17 2 . . . . 10 . . . 11 26 . . 80 3 16 Impact . | . . . . . . . . . . . . . . . . . . . . . . . . . . . . Kinetic 175 | . . . . . 8 5 . . . 14 12 2 . . . . 10 . . . 9 22 . . 74 3 16 Secondary 18 | . . . . . . . . . . 1 5 . . . . . . . . . 2 4 . . 6 . . Self-Inflicted Damage 284 | . . . 56 . . . . . . . . . . . . . . . . 98 . 51 . . . . 79 Shots 8 | . . . 1 . . . . . . . . . . . . . . . . 1 . 1 . . . . 5 Rammed . | . . . . . . . . . . . . . . . . . . . . . . . . . . . . Targets Rammed 1 | . . . . . . . . . . . . . . . . . . . . . . . . . . 1 . Kicked 1 | . . . . . . . . . . . . . . . . . . . . . . . . . . 1 . Crushed . | . . . . . . . . . . . . . . . . . . . . . . . . . . . . Highest Temperature 518 | . 11 241 306 11 . 127 22 12 . 33 258 80 80 . 120 56 159 . . 5 100 160 324 256 236 223 518 Average Temperature 94 | . 3 108 113 7 . 34 5 8 . 23 71 24 31 . 39 23 40 . . 3 28 40 23 89 97 151 102 Received Heat Transfer 5576 | . 258 285 756 630 9 606 102 40 . 214 121 90 9 . . . 169 25 . 36 57 91 25 8 1702 180 163 Thermoelectric Energy+ 50086 | . . . . . . . . . . . . . . . . . . . . . . . . . 16789 16289 17008 Effects 45 | . . . 1 . . . . . . . 3 . . . . . . . . . . . 1 . 8 11 21 Shutdowns 2 | . . . . . . . . . . . . . . . . . . . . . . . . . . . 2 Energy Bleed 12 | . . . 1 . . . . . . . . . . . . . . . . . . . . . 3 3 5 Interference 30 | . . . . . . . . . . . 3 . . . . . . . . . . . . . 5 8 14 Matter Decay 1 | . . . . . . . . . . . . . . . . . . . . . . . 1 . . . . Siege Activations . | . . . . . . . . . . . . . . . . . . . . . . . . . . . . Martial Activations . | . . . . . . . . . . . . . . . . . . . . . . . . . . . . Shielding Activations . | . . . . . . . . . . . . . . . . . . . . . . . . . . . . Robots Disrupted . | . . . . . . . . . . . . . . . . . . . . . . . . . . . . Combat Hostiles . | . . . . . . . . . . . . . . . . . . . . . . . . . . . . Robots Corrupted 38 | . . . . . . . 3 1 . 2 . . . . . . . 2 . . 1 12 . 3 1 13 . Combat Hostiles 35 | . . . . . . . 2 1 . 2 . . . . . . . 2 . . . 12 . 3 1 12 . Parts Fried 179 | . . 1 . . . . 3 2 . 8 . . . . . . . 5 . 1 3 37 . 19 4 92 4 Impact Corruptions 7 | . . . . . . . . . . . 2 . . . . . . . . . 1 . . . 4 . . Robots Melted 3 | . . . . 2 . . . . . . 1 . . . . . . . . . . . . . . . . Combat Hostiles 3 | . . . . 2 . . . . . . 1 . . . . . . . . . . . . . . . . Parts Melted 45 | . . 1 13 16 . . 2 . . 1 2 2 5 . 1 . 1 1 . . . . . . . . . Heat Transferred 14516 | . . 50 4161 3589 . . . . . . 1250 450 400 . 650 . 100 222 111 775 111 . 740 407 1320 . 180 Parts Sabotaged 2 | . . . . . . . . . . . . . . . . . . . . . . . . . 2 . . Parts Stolen . | . . . . . . . . . . . . . . . . . . . . . . . . . . . . Parts Stripped 18 | . . . . . . . . . . . . . . . . . . . . . . . . 18 . . . Power Chain Reactions 3 | . . 1 2 . . . . . . . . . . . . . . . . . . . . . . . . Alert | -11 -10 -10 -8 -8 -8 -6 -6 -6 -6 -5 -5 -5 -5 -5 -4 -4 -4 -4 -4 -4 -3 -3 -2 -2 -2 -1 -1 ------- Run | Yrd Mat Sub Mat Sto Rec Fac Low Low Dat Pro Fac Upp Upp Zhi Pro Fac Ext Cet Arc Hub Res Qua Res Tes Frg Acc Com Maximum Alert Level 5 | . . . 1 1 . 1 . . . . 2 . . . . . 1 1 1 3 2 4 2 2 5 5 5 Low Security (%) 27 | 100 100 . 71 42 100 83 . . . . 57 . . . . 100 85 78 91 25 . . . . . . . Level 1 7 | . . . 28 57 . 16 . . . . 40 . . . . . 14 21 8 17 . 6 7 18 18 . . Level 2 7 | . . . . . . . . . . . 1 . . . . . . . . 18 100 11 92 81 5 . . Level 3 5 | . . . . . . . . . . . . . . . . . . . . 38 . 58 . . 11 . . Level 4 2 | . . . . . . . . . . . . . . . . . . . . . . 23 . . 10 . . Level 5 49 | . . . . . . . . . . . . . . . . . . . . . . . . . 44 100 100 High Security . | . . . . . . . . . . . . . . . . . . . . . . . . . 9 . . Max Security . | . . . . . . . . . . . . . . . . . . . . . . . . . . . . Peak Influence 3755 | . 97 . 372 398 185 278 . . . . 406 . . . . 58 355 275 237 1016 645 1198 553 522 3755 3361 2168 Initial 2252 | . . . . 143 142 238 . . . . . . . . . 58 5 176 64 . 521 327 444 306 284 2252 2148 Average 639 | . 37 . 113 247 41 108 . . . . 188 . . . . 15 95 157 65 501 527 864 454 427 1812 2545 2130 Influence Increases 18480 | . 338 50 839 582 371 779 249 37 . 488 1082 280 20 . 265 22 811 457 193 1202 416 1551 591 686 4435 1723 1013 Destroy 0b10 Robot/C 9140 | . 200 40 640 400 40 320 220 20 . 380 680 200 20 . 220 . 420 200 80 280 200 640 300 300 2380 740 220 Destroy 0b10 Robot/NC 645 | . 15 . 15 20 145 15 . . . 30 15 . . . . . 35 10 5 40 35 55 15 10 75 75 35 Destroy Leader 1474 | . 34 10 106 114 . 84 10 10 . 10 142 20 . . 30 . 34 10 . 84 26 170 84 52 234 186 24 Allied During Kill 940 | . . . . . . . 4 7 . 8 22 . . . . . 231 186 85 334 63 . . . . . . Successful Hack 285 | . 28 . 19 14 17 20 . . . . 11 . . . . . . . . 17 23 20 . 24 14 54 24 Select Force Hacks 210 | . 60 . . . 120 . . . . 30 . . . . . . . . . . . . . . . . . Disable Machine 1230 | . . . 30 30 . 45 . . . . 45 . . . . . 15 15 15 105 15 345 . 75 270 135 90 Anti-Garrison Action 250 | . . . . . . . . . . . . . . . . . . . . . . . . . 200 . 50 Destroy Structure 3476 | . 1 . 14 4 49 35 . . . . 92 . . . . 22 76 36 8 282 54 306 87 195 1202 443 570 Advance Influence 200 | . . . . . . 200 . . . . . . . . . . . . . . . . . . . . . Partial Spotted 45 | . . . . . . . . . . . . . . . . . . . . . . . . . . 45 . Lose Combat Pursuer 585 | . . . 15 . . 60 15 . . 30 75 60 . . 15 . . . . 60 . 15 105 30 60 45 . Influence Decreases 15737 | . 284 104 499 557 643 602 514 42 . 488 699 646 37 . 172 103 507 612 354 209 826 1344 836 725 1186 2120 1628 Entered New Map 5276 | . . 26 . 197 223 55 100 2 . . . 142 4 . . 35 7 140 97 . 472 256 346 239 222 1503 1210 Time Decay 8998 | . 274 78 409 350 410 527 394 40 . 440 488 494 33 . 172 68 430 392 257 135 334 758 490 486 694 607 238 Lost Part 550 | . 10 . 90 10 10 20 . . . 40 30 10 . . . . 10 . . . . 10 . . 120 10 180 Lost Ally 323 | . . . . . . . 20 . . 8 41 . . . . . 60 80 . 74 20 20 . . . . . Purge Threat 590 | . . . . . . . . . . . 140 . . . . . . . . . . 300 . . 150 . . Squads Dispatched 99 | . 3 . 6 3 . 3 . . . 2 6 . . . . 1 1 . . 4 3 3 5 6 27 21 5 Investigation 8 | . 3 . 1 . . . . . . 1 . . . . . . 1 . . . 1 . . . 1 . . Extermination 27 | . . . . . . 2 . . . . 4 . . . . 1 . . . . . 1 3 4 5 6 1 Reinforcement 15 | . . . 2 3 . 1 . . . . 2 . . . . . . . . 1 2 2 1 1 . . . Assault 43 | . . . . . . . . . . 1 . . . . . . . . . . . . 1 1 21 15 4 Garrison 6 | . . . 3 . . . . . . . . . . . . . . . . 3 . . . . . . . Intercept . | . . . . . . . . . . . . . . . . . . . . . . . . . . . . Searches Triggered . | . . . . . . . . . . . . . . . . . . . . . . . . . . . . Data Miner Redirects 16 | . . . . . . . . . . . . . . . . . 1 . . . . . . . 6 9 . Construction Impeded 3 | . . . . 1 . . . . . . 1 . . . . . . . . 1 . . . . . . . Haulers Reinforced 1 | . . . . . . . . . . . . . . . . . . . . . . 1 . . . . . Active Scanning Responses . | . . . . . . . . . . . . . . . . . . . . . . . . . . . . Cargo Convoy Interrupts 1 | . . . . . . . . . . . 1 . . . . . . . . . . . . . . . . Stealth | -11 -10 -10 -8 -8 -8 -6 -6 -6 -6 -5 -5 -5 -5 -5 -4 -4 -4 -4 -4 -4 -3 -3 -2 -2 -2 -1 -1 --------- Run | Yrd Mat Sub Mat Sto Rec Fac Low Low Dat Pro Fac Upp Upp Zhi Pro Fac Ext Cet Arc Hub Res Qua Res Tes Frg Acc Com Distress Signals 65 | . 2 . 3 2 1 5 . . . 1 2 . . . . . 2 2 . 4 9 2 2 1 1 1 25 Communications Jammed 44 | . . . . . . . . . . . . . . . . . 2 . . . . 5 . 8 18 11 . Distress Signals 28 | . . . . . . . . . . . . . . . . . 2 . . . . 5 . 8 2 11 . Times Spotted 640 | . 14 6 37 28 2 32 11 2 . 61 51 12 5 . 12 . 27 11 3 14 16 41 20 23 153 48 11 Peak Tracking Total 14 | . 3 2 7 7 1 5 7 1 . 7 9 5 4 . 5 4 4 5 2 7 5 6 5 4 14 9 5 Tactical Retreats 32 | . . . 1 . . 3 1 . . 2 4 2 . . 1 . . . . 3 . 1 6 2 2 4 . ECM-based Alert Blocks 2 | . . . . . . . . . . . . . . . . . . . . . . . . . . 2 . Traps | -11 -10 -10 -8 -8 -8 -6 -6 -6 -6 -5 -5 -5 -5 -5 -4 -4 -4 -4 -4 -4 -3 -3 -2 -2 -2 -1 -1 ------- Run | Yrd Mat Sub Mat Sto Rec Fac Low Low Dat Pro Fac Upp Upp Zhi Pro Fac Ext Cet Arc Hub Res Qua Res Tes Frg Acc Com Traps Triggered 20 | . 2 . . . . 1 . . . . 1 . . . . . 2 . . . . 2 . 1 8 . 3 Indirectly . | . . . . . . . . . . . . . . . . . . . . . . . . . . . . Trap Hack Attempts . | . . . . . . . . . . . . . . . . . . . . . . . . . . . . Triggered . | . . . . . . . . . . . . . . . . . . . . . . . . . . . . Disarmed . | . . . . . . . . . . . . . . . . . . . . . . . . . . . . Reprogrammed . | . . . . . . . . . . . . . . . . . . . . . . . . . . . . Reused . | . . . . . . . . . . . . . . . . . . . . . . . . . . . . Traps Extracted . | . . . . . . . . . . . . . . . . . . . . . . . . . . . . Installed . | . . . . . . . . . . . . . . . . . . . . . . . . . . . . Triggered . | . . . . . . . . . . . . . . . . . . . . . . . . . . . . Machines | -11 -10 -10 -8 -8 -8 -6 -6 -6 -6 -5 -5 -5 -5 -5 -4 -4 -4 -4 -4 -4 -3 -3 -2 -2 -2 -1 -1 ---------- Run | Yrd Mat Sub Mat Sto Rec Fac Low Low Dat Pro Fac Upp Upp Zhi Pro Fac Ext Cet Arc Hub Res Qua Res Tes Frg Acc Com Machines Disabled 94 | . . . 2 2 . 3 . 1 . 1 3 . . . . . 4 1 1 7 1 23 . 6 22 9 8 Max in Single Turn 5 | . . . 1 1 . 1 . 1 . 1 1 . . . . . 1 1 1 5 1 4 . 2 2 2 2 Garrison Access 4 | . . . . . . 1 . . . . . . . . . . . . . 1 . 1 . . 1 . . Phase Generator 1 | . . . . . . . . . . . . . . . . . . . . . . . . . . . 1 Network Hub 1 | . . . . . . . . . . . . . . . . . . . . 1 . . . . . . . Machines Repaired . | . . . . . . . . . . . . . . . . . . . . . . . . . . . . Machines Dismantled 1 | . . . . . . . . . . . . . . . . . . 1 . . . . . . . . . Machines Sabotaged . | . . . . . . . . . . . . . . . . . . . . . . . . . . . . Overloaded Fab Kills . | . . . . . . . . . . . . . . . . . . . . . . . . . . . . Hacking | -11 -10 -10 -8 -8 -8 -6 -6 -6 -6 -5 -5 -5 -5 -5 -4 -4 -4 -4 -4 -4 -3 -3 -2 -2 -2 -1 -1 --------- Run | Yrd Mat Sub Mat Sto Rec Fac Low Low Dat Pro Fac Upp Upp Zhi Pro Fac Ext Cet Arc Hub Res Qua Res Tes Frg Acc Com Machines Accessed 90 | . 8 . 4 3 9 4 1 1 4 1 4 . . 4 . . 1 . 1 4 6 10 2 8 3 7 5 Terminals 58 | . 6 . 4 3 3 2 . 1 . . 3 . . . . . 1 . . 3 3 8 1 8 2 5 5 Fabricators 2 | . . . . . . 1 . . . . . . . . . . . . . . . . . . . 1 . Repair Stations . | . . . . . . . . . . . . . . . . . . . . . . . . . . . . Recycling Units 8 | . 2 . . . 5 . . . . 1 . . . . . . . . . . . . . . . . . Scanalyzers 5 | . . . . . . . . . . . 1 . . . . . . . . . 2 1 . . . 1 . Garrison Access 6 | . . . . . . 1 . . . . . . . . . . . . . 1 1 1 1 . 1 . . Total Hacks 255 | . 19 . 10 12 16 5 1 1 30 2 9 . . 16 . . 1 . 25 7 16 38 3 19 7 13 5 Successful 137 | . 7 . 2 4 10 4 1 1 30 2 4 . . 16 . . 1 . 25 4 4 13 . 1 4 2 2 Failed 116 | . 11 . 8 8 6 1 . . . . 5 . . . . . . . . 3 12 24 3 18 3 11 3 Catastrophic 36 | . 4 . . 2 2 . . . . . 3 . . . . . . . . 1 3 7 1 8 1 2 2 Database Lockouts 2 | . 1 . . . . . . . . . . . . . . . . . . . . 1 . . . . . Manual 94 | . 17 . 4 11 10 1 . . . 1 4 . . . . . 1 1 . 5 4 11 . 15 3 3 3 Terminals 139 | . 17 . 10 12 4 3 . 1 . . 6 . . . . . 1 . . 6 5 35 1 19 6 8 5 Fabricators 3 | . . . . . . 1 . . . . . . . . . . . . . . . . . . . 2 . Repair Stations . | . . . . . . . . . . . . . . . . . . . . . . . . . . . . Recycling Units 14 | . 2 . . . 10 . . . . 2 . . . . . . . . . . . . . . . . . Scanalyzers 16 | . . . . . . . . . . . 3 . . . . . . . . . 8 2 . . . 3 . Garrison Access 9 | . . . . . . 1 . . . . . . . . . . . . . 1 3 1 2 . 1 . . Terminal Hacks 102 | . 3 . 1 3 2 1 1 1 30 . 2 . . 16 . . . . 25 1 1 10 . . 2 2 1 Record 43 | . . . . . . . . 1 11 . . . . 5 . . . . 25 . . 1 . . . . . Part Schematic 12 | . . . . . . . . . 9 . . . . 3 . . . . . . . . . . . . . Robot Schematic 7 | . . . . . . . . . 7 . . . . . . . . . . . . . . . . . . Robot Analysis 8 | . 2 . 1 1 . . . . . . . . . 4 . . . . . . . . . . . . . Prototype ID Bank 8 | . . . . . . . . . 3 . . . . 4 . . . . . . . 1 . . . . . Open Door 5 | . . . . 1 . . 1 . . . . . . . . . . . . . 1 . . . . 1 1 Branch Access Points 4 | . . . . 1 . 1 . . . . 1 . . . . . . . . . . . . . . 1 . Recycling Unit Index 1 | . 1 . . . . . . . . . . . . . . . . . . . . . . . . . . Alert Level 5 | . . . . . . . . . . . . . . . . . . . . . . 5 . . . . . Unreport Threat 4 | . . . . . . . . . . . 1 . . . . . . . . . . 2 . . 1 . . Registered Prototypes 1 | . . . . . . . . . . . . . . . . . . . . . . 1 . . . . . Zone Layout 1 | . . . . . . . . . . . . . . . . . . . . 1 . . . . . . . Proto ID Catalog 1 | . . . . . . . . . . . . . . . . . . . . . . . . . 1 . . Release Object 2 | . . . . . 2 . . . . . . . . . . . . . . . . . . . . . . Fabricator Hacks 1 | . . . . . . 1 . . . . . . . . . . . . . . . . . . . . . Build 1 | . . . . . . 1 . . . . . . . . . . . . . . . . . . . . . Repair Station Hacks . | . . . . . . . . . . . . . . . . . . . . . . . . . . . . Recycling Unit Hacks 2 | . . . . . 1 . . . . 1 . . . . . . . . . . . . . . . . . Retrieve Components 2 | . . . . . 1 . . . . 1 . . . . . . . . . . . . . . . . . Scanalyzer 4 | . . . . . . . . . . . 1 . . . . . . . . . 2 1 . . . . . Retrieve Study 4 | . . . . . . . . . . . 1 . . . . . . . . . 2 1 . . . . . Garrison Access Hacks 3 | . . . . . . 1 . . . . . . . . . . . . . 1 . 1 . . . . . Seal Access 3 | . . . . . . 1 . . . . . . . . . . . . . 1 . 1 . . . . . Unauthorized Hacks 25 | . 4 . 1 1 7 1 . . . 1 1 . . . . . 1 . . 2 1 1 . 1 2 . 1 Terminals 15 | . 2 . 1 1 1 1 . . . . 1 . . . . . 1 . . 2 1 1 . 1 1 . 1 Botnet 15 | . 2 . 1 1 1 1 . . . . 1 . . . . . 1 . . 2 1 1 . 1 1 . 1 Fabricators . | . . . . . . . . . . . . . . . . . . . . . . . . . . . . Repair Stations . | . . . . . . . . . . . . . . . . . . . . . . . . . . . . Recycling Units 9 | . 2 . . . 6 . . . . 1 . . . . . . . . . . . . . . . . . Reject 1 | . . . . . 1 . . . . . . . . . . . . . . . . . . . . . . Mask 1 | . . . . . 1 . . . . . . . . . . . . . . . . . . . . . . Tunnel 7 | . 2 . . . 4 . . . . 1 . . . . . . . . . . . . . . . . . Scanalyzers . | . . . . . . . . . . . . . . . . . . . . . . . . . . . . Garrison Access 1 | . . . . . . . . . . . . . . . . . . . . . . . . . 1 . . Jam 1 | . . . . . . . . . . . . . . . . . . . . . . . . . 1 . . Data Cores Recovered 1 | . . . . . . . . . . . . . . . . . . . . . . . 1 . . . . Used . | . . . . . . . . . . . . . . . . . . . . . . . . . . . . Hacking Detections 56 | . 6 . 4 2 4 2 . . . . 4 . . . . . . . . 2 5 8 2 8 1 6 2 Full Trace Events 1 | . . . 1 . . . . . . . . . . . . . . . . . . . . . . . . Feedback Events . | . . . . . . . . . . . . . . . . . . . . . . . . . . . . Feedback Blocked . | . . . . . . . . . . . . . . . . . . . . . . . . . . . . Robot Schematics Acquired 7 | . . . . . . . . . 7 . . . . . . . . . . . . . . . . . . Robots Built . | . . . . . . . . . . . . . . . . . . . . . . . . . . . . Authchips . | . . . . . . . . . . . . . . . . . . . . . . . . . . . . Time . | . . . . . . . . . . . . . . . . . . . . . . . . . . . . Total Robot Build Rating . | . . . . . . . . . . . . . . . . . . . . . . . . . . . . Part Schematics Acquired 17 | . . . . . . . . . 9 . . . . 3 . . . . . . . . . . 5 . . Parts Built 2 | . . . . . . 2 . . . . . . . . . . . . . . . . . . . . . Authchips . | . . . . . . . . . . . . . . . . . . . . . . . . . . . . Time 95 | . . . . . . 95 . . . . . . . . . . . . . . . . . . . . . Total Part Build Rating 10 | . . . . . . 10 . . . . . . . . . . . . . . . . . . . . . Part Studies Acquired 4 | . . . . . . . . . . . 1 . . . . . . . . . 2 1 . . . . . Parts Repaired . | . . . . . . . . . . . . . . . . . . . . . . . . . . . . Time . | . . . . . . . . . . . . . . . . . . . . . . . . . . . . Parts Recycled . | . . . . . . . . . . . . . . . . . . . . . . . . . . . . Recycled Matter . | . . . . . . . . . . . . . . . . . . . . . . . . . . . . Retrieved Matter . | . . . . . . . . . . . . . . . . . . . . . . . . . . . . Retrieved Components 2 | . . . . . 2 . . . . . . . . . . . . . . . . . . . . . . Parts Scanalyzed . | . . . . . . . . . . . . . . . . . . . . . . . . . . . . Part Schematics Acquired . | . . . . . . . . . . . . . . . . . . . . . . . . . . . . Parts Damaged . | . . . . . . . . . . . . . . . . . . . . . . . . . . . . Bothacking | -11 -10 -10 -8 -8 -8 -6 -6 -6 -6 -5 -5 -5 -5 -5 -4 -4 -4 -4 -4 -4 -3 -3 -2 -2 -2 -1 -1 ------------ Run | Yrd Mat Sub Mat Sto Rec Fac Low Low Dat Pro Fac Upp Upp Zhi Pro Fac Ext Cet Arc Hub Res Qua Res Tes Frg Acc Com Used RIF Installer . | . . . . . . . . . . . . . . . . . . . . . . . . . . . . Robots Hacked 1 | . . . . . . . . . . . . . . . . . . . . . . . . . . . 1 Non-combat . | . . . . . . . . . . . . . . . . . . . . . . . . . . . . Combat . | . . . . . . . . . . . . . . . . . . . . . . . . . . . . Robot Hacks Applied . | . . . . . . . . . . . . . . . . . . . . . . . . . . . . Manual 1 | . . . . . . . . . . . . . . . . . . . . . . . . . . . 1 Relay Couplers Released . | . . . . . . . . . . . . . . . . . . . . . . . . . . . . Fabnet Peak Effective % . | . . . . . . . . . . . . . . . . . . . . . . . . . . . . Robots Rewired 19 | . . . . . . . 2 3 . 6 . . . . . . 8 . . . . . . . . . . Allies Hacked . | . . . . . . . . . . . . . . . . . . . . . . . . . . . . Hacks Repelled . | . . . . . . . . . . . . . . . . . . . . . . . . . . . . Allies | -11 -10 -10 -8 -8 -8 -6 -6 -6 -6 -5 -5 -5 -5 -5 -4 -4 -4 -4 -4 -4 -3 -3 -2 -2 -2 -1 -1 -------- Run | Yrd Mat Sub Mat Sto Rec Fac Low Low Dat Pro Fac Upp Upp Zhi Pro Fac Ext Cet Arc Hub Res Qua Res Tes Frg Acc Com Total Allies 30 | . . . . . . . 2 3 . 7 . . . . . . 13 5 . . . . . . . . . Largest Group 10 | . . . . . . . 2 3 3 6 6 . . . . . 10 10 10 9 2 1 . . . . . Highest-Rated Group 795 | . . . . . . . 58 60 60 106 106 . . . . . 527 795 788 638 192 96 . . . . . Highest-Rated Ally 159 | . . . . . . . 29 20 20 29 29 . . . . . 159 159 143 96 96 96 . . . . . Total Orders 3 | . . . . . . . . . . 2 . . . . . . . . . 1 . . . . . . . STAY 3 | . . . . . . . . . . 2 . . . . . . . . . 1 . . . . . . . Ally Attacks 317 | . . . . . . . 10 . . 11 31 . . . . . 75 46 26 99 16 3 . . . . . Total Damage 8983 | . . . . . . . 154 . . 189 353 . . . . . 2220 1473 915 3018 564 97 . . . . . Kills 38 | . . . . . . . . . . 1 1 . . . . . 10 8 2 14 2 . . . . . . Allies Corrupted 2 | . . . . . . . 1 . . . . . . . . . . . . 1 . . . . . . . Allies Melted 1 | . . . . . . 1 . . . . . . . . . . . . . . . . . . . . . Intel | -11 -10 -10 -8 -8 -8 -6 -6 -6 -6 -5 -5 -5 -5 -5 -4 -4 -4 -4 -4 -4 -3 -3 -2 -2 -2 -1 -1 ------- Run | Yrd Mat Sub Mat Sto Rec Fac Low Low Dat Pro Fac Upp Upp Zhi Pro Fac Ext Cet Arc Hub Res Qua Res Tes Frg Acc Com Active Infowar (turns) 34514 | . . 562 86 . . 1019 1812 1614 140 478 417 1152 538 514 948 275 1193 . 929 171 367 1156 1199 1068 1747 1967 15162 Optics 13901 | . . . . . . . . . . . . . . . . . . . . . . . . . . . 13901 Sensors 15039 | . . . . . . 990 1812 1614 140 478 169 1147 538 119 939 275 758 . 929 171 353 1013 1096 1012 342 1143 1 Terrain 14238 | . . . . . . . . . . . . . . . . . . . . . . . 675 . . 486 13077 Structural 7688 | . . 562 86 . . 77 1607 1359 140 184 176 1148 538 444 948 275 144 . . . . . . . . . . Traps 925 | . . . . . . 181 . . . . 240 . . . . . 504 . . . . . . . . . . Cloaking 3584 | . . . . . . . . . . . . . . . . . . . . . . . . . 1253 1930 401 Jamming 4506 | . . . . . . . . . . . . . . . . 208 684 . . . 34 385 513 806 1014 606 256 ECM 73 | . . . . . . . . . . . . . . . . . . . . . . . . . . 73 . Robot Analysis Total 8 | . 2 . 1 1 . . . . . . . . . 4 . . . . . . . . . . . . . Derelict Logs Recovered 7 | . . 1 . . . . 2 1 . 1 . . 1 . 1 . . . . . . . . . . . . Drone Launches . | . . . . . . . . . . . . . . . . . . . . . . . . . . . . Drone Recoveries . | . . . . . . . . . . . . . . . . . . . . . . . . . . . . Exploration | -11 -10 -10 -8 -8 -8 -6 -6 -6 -6 -5 -5 -5 -5 -5 -4 -4 -4 -4 -4 -4 -3 -3 -2 -2 -2 -1 -1 ------------- Run | Yrd Mat Sub Mat Sto Rec Fac Low Low Dat Pro Fac Upp Upp Zhi Pro Fac Ext Cet Arc Hub Res Qua Res Tes Frg Acc Com Turns Passed 59428 | 86 766 846 1495 793 5217 1486 1895 1614 140 1986 1539 1314 538 571 1063 275 2115 926 976 307 759 4148 1280 1260 3167 1967 20899 Spaces Moved 26878 | 48 392 443 509 196 1767 761 1032 902 80 950 799 797 362 156 640 170 771 351 198 198 588 2495 678 860 2066 1807 6862 Core 5 | 5 . . . . . . . . . . . . . . . . . . . . . . . . . . . Treads 6106 | 43 392 443 509 196 992 197 . . . . . 672 362 88 . . . 50 198 198 454 349 . . 963 . . Legs 19411 | . . . . . . 427 1032 902 80 950 674 125 . 68 640 170 771 147 . . 134 2146 678 695 1103 1807 6862 Wheels 912 | . . . . . 775 137 . . . . . . . . . . . . . . . . . . . . . Hover 444 | . . . . . . . . . . . 125 . . . . . . 154 . . . . . 165 . . . Flight . | . . . . . . . . . . . . . . . . . . . . . . . . . . . . Fastest Speed 50 | 50 160 160 152 242 118 103 173 173 173 137 138 138 138 110 152 152 152 74 74 74 74 123 150 69 78 78 78 Average Speed 126 | 152 160 160 222 249 178 122 173 173 173 157 148 138 138 143 152 152 228 221 74 74 100 133 150 93 78 78 87 Slowest Speed 282 | 160 160 240 243 250 250 173 173 173 173 173 171 138 138 152 152 152 282 268 74 74 123 150 150 150 78 78 89 Overloaded Moves . | . . . . . . . . . . . . . . . . . . . . . . . . . . . . Propulsion Burnouts . | . . . . . . . . . . . . . . . . . . . . . . . . . . . . Robots Hopped . | . . . . . . . . . . . . . . . . . . . . . . . . . . . . Potential Cave-ins 302 | . . . . . . . . . . . . . . . . . . . . . . . 2 . 14 2 284 Cave-ins Triggered 37 | . . . . . . . . . . . . . . . . . . . . . . . . . 1 . 36 Teleports 1 | . . . . . . . . . . . . . . . . . . . . . . . . . 1 . . Exploration Rate (%) 57 | 4 76 26 45 64 98 19 97 90 69 63 26 75 55 60 77 6 76 71 79 23 20 94 19 82 54 45 87 Regions Visited 27 Branch Regions 19 Pre-discovered Areas 13 | . 2 1 . . 4 . . . 1 2 . . . 3 . . . . . . . . . . . . . Known Exits Taken 21 | . . . 1 1 . 1 1 1 1 1 1 1 1 1 1 1 1 1 1 1 1 . 1 1 . 1 . Unknown Exits Taken 6 | 1 1 1 . . 1 . . . . . . . . . . . . . . . . 1 . . 1 . . Scrap Searched 17 | . . . . . . . 4 3 . 1 . 4 1 . 4 . . . . . . . . . . . . Spaces Dug 380 | . . . 1 . 12 17 . . . . 14 8 4 . 7 6 . . . . 16 11 22 23 46 78 115 Terrain Destroyed 3711 | . . 7 14 . 47 35 1 . . 4 47 20 8 . 13 7 34 3 2 173 27 171 32 79 201 180 2606 Melee 13 | . . . 1 . 1 . . . . . . . . . . . . . . . . . 10 1 . . . Projectile 912 | . . . . . 46 35 1 . . 4 47 20 8 . 13 7 34 3 2 8 27 45 22 47 190 164 189 AOE 2775 | . . 7 13 . . . . . . . . . . . . . . . . 165 . 126 . 31 . 16 2417 Terrain Rammed . | . . . . . . . . . . . . . . . . . . . . . . . . . . . . Walls Destroyed . | . . . . . . . . . . . . . . . . . . . . . . . . . . . . Machines Disabled . | . . . . . . . . . . . . . . . . . . . . . . . . . . . . Actions | -11 -10 -10 -8 -8 -8 -6 -6 -6 -6 -5 -5 -5 -5 -5 -4 -4 -4 -4 -4 -4 -3 -3 -2 -2 -2 -1 -1 --------- Run | Yrd Mat Sub Mat Sto Rec Fac Low Low Dat Pro Fac Upp Upp Zhi Pro Fac Ext Cet Arc Hub Res Qua Res Tes Frg Acc Com Total 50004 | 58 454 514 726 374 3725 1224 1108 948 82 1322 1032 967 384 506 697 179 1059 474 1021 322 707 3225 840 1205 3142 2236 21473 Wait 19464 | . 7 25 38 88 1734 283 12 3 3 145 75 104 4 329 12 . 86 78 805 54 30 491 55 135 417 225 14226 Move 26821 | 47 391 442 508 195 1766 760 1031 901 79 949 798 796 361 155 639 169 770 350 197 197 587 2494 677 859 2064 1806 6833 Hop . | . . . . . . . . . . . . . . . . . . . . . . . . . . . . Pick Up 385 | 5 12 5 38 4 44 21 5 2 . 11 10 7 3 5 3 2 16 5 4 4 11 46 1 25 43 22 31 Fast Attach 100 | 5 2 . 12 4 1 6 1 . . 1 2 . . 3 . 1 2 2 1 3 . 7 3 5 17 4 18 Attach 88 | . 2 8 11 1 2 7 . . . 2 2 2 . 1 . . 2 2 . 1 1 5 3 3 18 3 12 Detach 31 | . . . 3 . 1 6 . . . . 1 . . . . . . 1 . 2 . . 3 2 5 3 4 Swap 421 | 1 1 2 12 9 1 18 7 5 . 1 14 15 . 2 16 . 20 . 3 5 13 39 29 46 94 48 20 Drop 385 | . 1 . 26 9 52 26 6 1 . 9 12 4 . 11 1 . 14 7 5 7 13 48 3 30 47 12 41 Fire 2011 | . 38 32 77 63 123 97 33 6 . 120 118 39 16 . 26 7 60 21 6 37 52 95 43 97 433 112 260 Melee 29 | . . . 1 1 1 . . . . . . . . . . . . . . . . . 23 3 . . . Ram . | . . . . . . . . . . . . . . . . . . . . . . . . . . . . Kick 1 | . . . . . . . . . . . . . . . . . . . . . . . . . . 1 . Crush . | . . . . . . . . . . . . . . . . . . . . . . . . . . . . Escape Stasis 42 | . . . . . . . . . . . . . . . . . 10 . . . . . . . 4 . 28 Rewire 218 | . . . . . . . 13 30 . 84 . . . . . . 79 . . 12 . . . . . . . Trap . | . . . . . . . . . . . . . . . . . . . . . . . . . . . . Miscellaneous 8 | . . . . . . . . . . . . . . . . . . 8 . . . . . . . . . Route ------- -11/Scrapyard -10/Materials (discovered 3 exits: [*Mat x2] / [*Sub]) -10/Subcaves -8/Materials -8/Storage -8/Recycling -6/Factory (discovered 2 exits: *Low x2) -6/Lower Caves -6/Lower Caves (discovered 2 exits: *Fac / *Dat) -6/Data Miner -5/Proximity Caves -5/Factory (discovered 4 exits: *Fac x2 / *Upp x2) -5/Upper Caves -5/Upper Caves (discovered 2 exits: *Fac / *Zhi) -5/Zhirov -4/Proximity Caves -4/Factory (discovered 3 exits: Res x2 / *Ext) -4/Extension (discovered 2 exits: *Res / *Cet) -4/Cetus (discovered 2 exits: *Res / *Arc) -4/Archives (discovered 2 exits: *Res / *Hub) -4/Hub_04(d) -3/Research -3/Quarantine -2/Research -2/Testing (discovered 3 exits: *Acc / [*Sec] / *Frg) -2/Protoforge -1/Access (discovered 2 exits: [*Sur] / *Com) -1/Command (discovered 2 exits: [*Sur x2]) 0b11 Command History --------- Turn | Location | Event 14 | -11/Scrapyard | Discovered new exit (range 15) 87 | -11/Scrapyard | Entered Materials 240 | -10/Materials | Discovered new exit (range 8) 316 | -10/Materials | Build established: Mutant 667 | -10/Materials | Discovered new exit (range 14) 813 | -10/Materials | Central database locked down 845 | -10/Materials | Discovered new exit (range 6) 853 | -10/Materials | Entered Subcaves 854 | -10/Subcaves | Approached by a straggling Scientist 860 | -10/Subcaves | Learned location of Storage (-8) 861 | -10/Subcaves | Shifting Twisted Machinery released Sub. Monowheel 885 | -10/Subcaves | Discovered new exit (range 7) 1163 | -10/Subcaves | Shifting Twisted Machinery released Sub. Monowheel 1164 | -10/Subcaves | Shifting Twisted Machinery released Sub. Monowheel 1422 | -10/Subcaves | Core integrity fell below 50% 1501 | -10/Subcaves | Lost 5 parts (2p1n2w) 1699 | -10/Subcaves | Entered Materials 1699 | -8/Materials | Evolved 4 slots: Propulsion x2, Utility x2 1831 | -8/Materials | Lost 4 parts (1n1u2w) 2433 | -8/Materials | Build established: Scavenger-Mutant 2745 | -8/Materials | Garrison activated, responded to threat 2804 | -8/Materials | Destroyed 10 combat bots 3170 | -8/Materials | Discovered new exit (range 9) 3193 | -8/Materials | Identified exit to Storage 3194 | -8/Materials | Entered Storage 3284 | -8/Storage | Identified exit to Recycling 3540 | -8/Storage | Build established: Mutant 3980 | -8/Storage | Used back door to open Recycling access 3987 | -8/Storage | Entered Recycling 3988 | -8/Recycling | Met a Zionite searching for Scraptown 3988 | -8/Recycling | Joined Warlord attack on 0b10 via Recycling 4875 | -8/Recycling | Entered Scraplab 4889 | -8/Recycling | Found Prototype Device 4889 | -8/Recycling | Identified Scrap Engine 5029 | -8/Recycling | Discovered new exit (range 16) 7062 | -8/Recycling | Build established: Construct 9204 | -8/Recycling | Entered Factory 9204 | -6/Factory | Evolved 4 slots: Power x1, Propulsion x1, Utility x2 10011 | -6/Factory | Found Unknown Device 10011 | -6/Factory | Identified Launcher Loader 10043 | -6/Factory | Identified exit to Lower Caves 10100 | -6/Factory | Fabricated Adv. Heat Sink? 10108 | -6/Factory | Spotted B-75 Beast 10690 | -6/Factory | Entered Lower Caves 10747 | -6/Lower Caves | Attracted the attention of an 0b10 outpost 10810 | -6/Lower Caves | Destroyed 7 combat bots 11421 | -6/Lower Caves | Found DCF Scrap (12 items) 12297 | -6/Lower Caves | Learned Factory security intel 12380 | -6/Lower Caves | Discovered new exit (range 7) 12389 | -6/Lower Caves | Identified exit to Lower Caves 12446 | -6/Lower Caves | Learned Factory interactive machine intel 12585 | -6/Lower Caves | Entered another Lower Caves area 12639 | -6/Lower Caves | Discovered new exit (range 5) 12763 | -6/Lower Caves | Identified exit to Factory 12779 | -6/Lower Caves | Attacked by a delusional Derelict stockpiling Unaware 13737 | -6/Lower Caves | Discovered new exit (range 8) 13751 | -6/Lower Caves | Identified exit to Data Miner 14199 | -6/Lower Caves | Entered Data Miner 14199 | -6/Data Miner | Accompanied by 3 allies 14199 | -6/Data Miner | Discovered new exit (range 6) 14232 | -6/Data Miner | Met Data Miner 14269 | -6/Data Miner | Learned location of Section 7 (-2) 14269 | -6/Data Miner | Acquired the access code to Warlord's prototype stash 14293 | -6/Data Miner | Received God Mode back door access code from Data Miner 14331 | -6/Data Miner | Identified exit to Proximity Caves 14339 | -6/Data Miner | Entered Proximity Caves 14339 | -5/Proximity Caves | Accompanied by 3 allies 14341 | -5/Proximity Caves | Greeted by an Infiltrator in a former 0b10 base 14441 | -5/Proximity Caves | Former 0b10 base attacked by MAIN.C 14628 | -5/Proximity Caves | P-70 Sage assimilated allied SC-K08(g) 14638 | -5/Proximity Caves | Attracted the attention of an 0b10 outpost 14797 | -5/Proximity Caves | Lost 20 allies 14839 | -5/Proximity Caves | 0b10 base defense nominally successful 14900 | -5/Proximity Caves | Lost 12 allies 16135 | -5/Proximity Caves | Learned location of Warlord (-4) 16178 | -5/Proximity Caves | Build established: Commander-Construct 16271 | -5/Proximity Caves | Discovered exit to Factory (range 14) 16325 | -5/Proximity Caves | Entered Factory 16325 | -5/Factory | Accompanied by 6 allies 16325 | -5/Factory | Evolved 2 slots: Propulsion x1, Weapon x1 16327 | -5/Factory | Loaded intel: 52 interactive machine locations 16346 | -5/Factory | Discovered new exit (range 16) 16371 | -5/Factory | Identified exit to Factory 16441 | -5/Factory | Lost 3 allies 16690 | -5/Factory | Build established: Construct 17056 | -5/Factory | Discovered exit to Factory (range 6) 17085 | -5/Factory | Identified exit to Upper Caves 17154 | -5/Factory | Cargo convoy interrupted 17275 | -5/Factory | Spotted B-75 Beast 17864 | -5/Factory | Entered Upper Caves 18533 | -5/Upper Caves | Attracted the attention of an 0b10 checkpoint 19050 | -5/Upper Caves | Entered a destroyed Warlord outpost 19172 | -5/Upper Caves | Discovered new exit (range 6) 19177 | -5/Upper Caves | Identified exit to Upper Caves 19178 | -5/Upper Caves | Entered another Upper Caves area 19284 | -5/Upper Caves | Discovered exit to Factory (range 16) 19548 | -5/Upper Caves | Discovered new exit (range 11) 19550 | -5/Upper Caves | Learned 12 Factory zone layouts 19714 | -5/Upper Caves | Identified exit to Zhirov 19716 | -5/Upper Caves | Entered Zhirov 19716 | -5/Zhirov | Discovered new exit (range 3) 19741 | -5/Zhirov | Met Zhirov 19766 | -5/Zhirov | Learned location of Quarantine (-3) 19766 | -5/Zhirov | Learned location of Testing (-2) 19766 | -5/Zhirov | Learned location of Command (-1) 19779 | -5/Zhirov | Zhirov requested help retrieving the SGEMP Prototype 19800 | -5/Zhirov | Found Alien Artifact 19800 | -5/Zhirov | Identified Integrated Reactor 19800 | -5/Zhirov | Installed Integrated Reactor, increased core energy generation (+10) 20229 | -5/Zhirov | Found Alien Artifact 20286 | -5/Zhirov | Identified exit to Proximity Caves 20287 | -5/Zhirov | Entered Proximity Caves 20645 | -4/Proximity Caves | Learned Research stockpile data 21331 | -4/Proximity Caves | Discovered exit to Factory (range 4) 21350 | -4/Proximity Caves | Entered Factory 21350 | -4/Factory | Evolved 2 slots: Power x1, Utility x1 21351 | -4/Factory | Identified exit to Extension 21352 | -4/Factory | Identified exit to Research 21625 | -4/Factory | Entered Extension 22469 | -4/Extension | Rescued a captive Derelict 22470 | -4/Extension | Rescued a captive Derelict 22553 | -4/Extension | Rescued a captive Derelict 22577 | -4/Extension | Rescued a captive Derelict 22625 | -4/Extension | Build established: Commander-Construct 22897 | -4/Extension | Spotted B-86 Titan 22913 | -4/Extension | Spotted B-86 Titan 22925 | -4/Extension | Destroyed B-86 Titan 22931 | -4/Extension | Allies destroyed B-86 Titan 22957 | -4/Extension | Lost 3 allies 23003 | -4/Extension | Rescued A7 23202 | -4/Extension | Incoming investigation squad redirected 23581 | -4/Extension | Discovered new exit (range 16) 23584 | -4/Extension | Discovered exit to Research (range 15) 23710 | -4/Extension | Identified exit to Cetus 23740 | -4/Extension | Entered Cetus 23740 | -4/Cetus | Accompanied by 10 allies (A7) 23745 | -4/Cetus | Acquired a Cetus Manufacturing Module code from A7 23774 | -4/Cetus | Spotted Cetus Guard 23774 | -4/Cetus | Spotted Cetus Guard 23774 | -4/Cetus | Spotted Cetus Guard 23776 | -4/Cetus | Spotted Cetus Guard 23790 | -4/Cetus | Destroyed Cetus Guard 23794 | -4/Cetus | Destroyed Cetus Guard 23800 | -4/Cetus | Allies destroyed Cetus Guard 23804 | -4/Cetus | Allies destroyed Cetus Guard 23819 | -4/Cetus | Lost 5 allies 23922 | -4/Cetus | Started Cetus Manufacturing Module 23947 | -4/Cetus | Manufactured an Enhanced Grunt 23953 | -4/Cetus | Escorted A7 to Cetus Mainframe 23972 | -4/Cetus | Manufactured an Enhanced Grunt 23986 | -4/Cetus | Discovered new exit (range 16) 23997 | -4/Cetus | Manufactured an Enhanced Grunt 24022 | -4/Cetus | Manufactured an Enhanced Grunt 24030 | -4/Cetus | Spotted Cetus Guard 24030 | -4/Cetus | Spotted Cetus Guard 24032 | -4/Cetus | Spotted Cetus Guard 24032 | -4/Cetus | Destroyed Cetus Guard 24032 | -4/Cetus | Allies destroyed Cetus Guard 24035 | -4/Cetus | Destroyed Cetus Guard 24036 | -4/Cetus | Spotted Cetus Guard 24039 | -4/Cetus | Allies destroyed Cetus Guard 24047 | -4/Cetus | Manufactured an Enhanced Grunt 24054 | -4/Cetus | Discovered exit to Research (range 16) 24067 | -4/Cetus | Met Revision 17 24490 | -4/Cetus | Security sweep announced 24645 | -4/Cetus | Identified exit to Archives 24666 | -4/Cetus | Entered Archives 24666 | -4/Archives | Accompanied by 10 allies (A7) 24671 | -4/Archives | Received a hacking code to weaken MAIN.C 24722 | -4/Archives | Unable to access archive contents 24732 | -4/Archives | Unable to access archive contents 24733 | -4/Archives | Discovered new exit (range 16) 24739 | -4/Archives | Unable to access archive contents 24741 | -4/Archives | Discovered exit to Research (range 16) 24746 | -4/Archives | Unable to access archive contents 24931 | -4/Archives | Identified exit to Hub_04(d) 25642 | -4/Archives | Entered Hub_04(d) 25642 | -4/Hub_04(d) | Accompanied by 9 allies 25694 | -4/Hub_04(d) | Discovered exit to Research (range 13) 25712 | -4/Hub_04(d) | Found Prototype Device 25713 | -4/Hub_04(d) | Identified Exp. Thermal Shield 25762 | -4/Hub_04(d) | Lost 3 allies 25825 | -4/Hub_04(d) | Network Hub disabled 25830 | -4/Hub_04(d) | Spotted Lightning 25831 | -4/Hub_04(d) | Destroyed Lightning 25832 | -4/Hub_04(d) | Spotted Lightning 25837 | -4/Hub_04(d) | Spotted Lightning 25841 | -4/Hub_04(d) | Destroyed Lightning 25860 | -4/Hub_04(d) | Destroyed Lightning 25909 | -4/Hub_04(d) | Found Prototype Device 25909 | -4/Hub_04(d) | Identified Exp. Phase Shifter 25913 | -4/Hub_04(d) | Found Prototype Device 25913 | -4/Hub_04(d) | Identified Exp. EM Shield 25921 | -4/Hub_04(d) | Found Prototype Processor 25921 | -4/Hub_04(d) | Identified Exp. Targeting Computer 25949 | -4/Hub_04(d) | Entered Research 25949 | -3/Research | Accompanied by 2 allies 25949 | -3/Research | Evolved 2 slots: Propulsion x1, Weapon x1 26137 | -3/Research | Build established: Construct 26149 | -3/Research | Revision forces began assault on 0b10 26167 | -3/Research | Met up with Revision 17++ 26226 | -3/Research | Spotted B-86 Titan 26525 | -3/Research | Found Prototype Device 26531 | -3/Research | Identified Adv. Kinecellerator 26537 | -3/Research | Discovered new exit (range 8) 26649 | -3/Research | Research terminal network offline 26707 | -3/Research | Identified exit to Quarantine 26708 | -3/Research | Entered Quarantine 26708 | -3/Quarantine | Accompanied by 1 ally 26928 | -3/Quarantine | Found Prototype Launcher 26948 | -3/Quarantine | Identified Hellfire Missile Launcher 26987 | -3/Quarantine | Found Prototype Processor 26992 | -3/Quarantine | Identified Exp. Target Analyzer 27447 | -3/Quarantine | Cryocooling Duct disabled 27462 | -3/Quarantine | Ambient heat levels rising (+20) 27462 | -3/Quarantine | Non-combat units ordered to evacuate 27523 | -3/Quarantine | Cryocooling Duct disabled 27538 | -3/Quarantine | Ambient heat levels rising (+20) 27538 | -3/Quarantine | Combat units ordered to evacuate 27638 | -3/Quarantine | Quarantine Guard activated 27717 | -3/Quarantine | Spotted Quarantine Guard 27721 | -3/Quarantine | Destroyed Quarantine Guard 27848 | -3/Quarantine | Spotted Quarantine Guard 27858 | -3/Quarantine | Destroyed Quarantine Guard 27876 | -3/Quarantine | Spotted Quarantine Guard 27893 | -3/Quarantine | Destroyed Quarantine Guard 27948 | -3/Quarantine | Discovered new exit (range 16) 27948 | -3/Quarantine | Spotted Quarantine Guard 27975 | -3/Quarantine | Destroyed Quarantine Guard 28061 | -3/Quarantine | Spotted Quarantine Guard 28082 | -3/Quarantine | Destroyed Quarantine Guard 28117 | -3/Quarantine | Spotted Quarantine Guard 28125 | -3/Quarantine | Destroyed Quarantine Guard 28145 | -3/Quarantine | Spotted Quarantine Guard 28164 | -3/Quarantine | Spotted Quarantine Guard 28167 | -3/Quarantine | Destroyed Quarantine Guard 28176 | -3/Quarantine | Destroyed Quarantine Guard 28265 | -3/Quarantine | Spotted Quarantine Guard 28292 | -3/Quarantine | Destroyed Quarantine Guard 28427 | -3/Quarantine | Spotted Quarantine Guard 28453 | -3/Quarantine | Destroyed Quarantine Guard 28468 | -3/Quarantine | Spotted Quarantine Guard 28485 | -3/Quarantine | Destroyed Quarantine Guard 28527 | -3/Quarantine | Spotted Quarantine Guard 28541 | -3/Quarantine | Destroyed Quarantine Guard 28565 | -3/Quarantine | Found Prototype Device 28718 | -3/Quarantine | Identified Imp. Particle Accelerator 28802 | -3/Quarantine | Watched by a mysterious "MATRIX" hacker 28802 | -3/Quarantine | Central database locked down 29685 | -3/Quarantine | Found Prototype Launcher 29699 | -3/Quarantine | Identified Tactical Quantum Warhead 29991 | -3/Quarantine | Found Alien Artifact 29991 | -3/Quarantine | Identified Phase Redirector 30309 | -3/Quarantine | Found Alien Slashing Weapon 30448 | -3/Quarantine | Found Alien Impact Weapon 30461 | -3/Quarantine | System corruption reached 10% 30703 | -3/Quarantine | Found Alien Artifact 30856 | -3/Quarantine | Entered Research 30856 | -2/Research | Evolved 2 slots: Weapon x2 30856 | -2/Research | Identified Sigix Broadsword 31356 | -2/Research | First assault squad dispatched 32048 | -2/Research | Spotted B-90 Cyclops 32067 | -2/Research | Destroyed B-90 Cyclops 32114 | -2/Research | Discovered new exit (range 14) 32135 | -2/Research | Identified exit to Testing 32136 | -2/Research | Entered Testing 32357 | -2/Testing | Found Prototype Device 32358 | -2/Testing | Identified Exp. Transmission Jammer 32670 | -2/Testing | Found Prototype Ballistic Cannon 32671 | -2/Testing | Identified Perforator 32739 | -2/Testing | Found Prototype Device 32745 | -2/Testing | Identified Adv. Particle Accelerator 32793 | -2/Testing | Found Prototype Device 32808 | -2/Testing | Identified AEGIS Remote Shield 33122 | -2/Testing | Discovered new exit (range 14) 33170 | -2/Testing | Found Prototype Processor 33176 | -2/Testing | Identified Exp. Core Analyzer 33204 | -2/Testing | Identified Core Stripper 33220 | -2/Testing | Spotted Fortress 33227 | -2/Testing | Destroyed Fortress 33242 | -2/Testing | Found Prototype Device 33242 | -2/Testing | Identified Thermal Barrier 33256 | -2/Testing | Found Prototype Device 33256 | -2/Testing | Identified Exp. Force Field 33386 | -2/Testing | First assault squad dispatched 33393 | -2/Testing | Discovered new exit (range 5) 33393 | -2/Testing | Discovered new exit (range 6) 33395 | -2/Testing | Identified exit to Protoforge 33396 | -2/Testing | Entered Protoforge 33516 | -2/Protoforge | Discovered new exit (range 9) 33641 | -2/Protoforge | Superfortress began startup sequence 33641 | -2/Protoforge | Spotted Overlord 33712 | -2/Protoforge | Destroyed Overlord 33718 | -2/Protoforge | Found Prototype Device 33718 | -2/Protoforge | Identified Exp. Remote Shield 33727 | -2/Protoforge | Found Exp. Targeting Computer 33730 | -2/Protoforge | Spotted Hotshot 33730 | -2/Protoforge | Spotted Hotshot 33731 | -2/Protoforge | Spotted Hotshot 33733 | -2/Protoforge | Destroyed Hotshot 33733 | -2/Protoforge | Spotted Hotshot 33739 | -2/Protoforge | Destroyed Hotshot 33745 | -2/Protoforge | Destroyed Hotshot 33757 | -2/Protoforge | Destroyed Hotshot 33851 | -2/Protoforge | Found Prototype Device 33876 | -2/Protoforge | Identified Cep. Antimissile System 33894 | -2/Protoforge | Additional patrols dispatched to research labs 33965 | -2/Protoforge | Crushed by falling debris 33985 | -2/Protoforge | Spotted Decapitator 33985 | -2/Protoforge | Spotted Decapitator 33987 | -2/Protoforge | Spotted Decapitator 33987 | -2/Protoforge | Spotted Decapitator 33991 | -2/Protoforge | Destroyed Decapitator 34001 | -2/Protoforge | Destroyed Decapitator 34007 | -2/Protoforge | Destroyed Decapitator 34009 | -2/Protoforge | Destroyed Decapitator 34034 | -2/Protoforge | Identified Transdimensional Reconstructor 34037 | -2/Protoforge | Found Prototype Device 34044 | -2/Protoforge | Spotted Immortal 34045 | -2/Protoforge | Identified Crosscalibrator 34049 | -2/Protoforge | Spotted Immortal 34069 | -2/Protoforge | Destroyed Immortal 34077 | -2/Protoforge | Destroyed Immortal 34081 | -2/Protoforge | Spotted Decapitator 34081 | -2/Protoforge | Spotted Decapitator 34081 | -2/Protoforge | Spotted Decapitator 34107 | -2/Protoforge | Found Cep. Antigrav Storage Unit 34113 | -2/Protoforge | Found Cep. Matter Streamer 34133 | -2/Protoforge | Destroyed Decapitator 34141 | -2/Protoforge | Destroyed Decapitator 34171 | -2/Protoforge | Spotted V163-r 34186 | -2/Protoforge | Found Cep. Beam Splitter 34189 | -2/Protoforge | Found Cep. Phase Shift Module 34192 | -2/Protoforge | Found Faulty Cep. Energy Mantle 34206 | -2/Protoforge | Found Faulty Cep. Energy Mantle 34218 | -2/Protoforge | Found Exp. Targeting Computer 34340 | -2/Protoforge | Found Exp. Kinecellerator 34368 | -2/Protoforge | Spotted V204-f 34368 | -2/Protoforge | Spotted V984-b 34371 | -2/Protoforge | Spotted V198-g 34371 | -2/Protoforge | Spotted V125-c 34375 | -2/Protoforge | Found Cep. Countertargeting System 34403 | -2/Protoforge | Destroyed V125-c 34407 | -2/Protoforge | Destroyed V984-b 34409 | -2/Protoforge | Destroyed V198-g 34429 | -2/Protoforge | Destroyed V204-f 34494 | -2/Protoforge | Spotted Decapitator 34497 | -2/Protoforge | Spotted Decapitator 34498 | -2/Protoforge | Destroyed Decapitator 34501 | -2/Protoforge | Spotted V532-g 34501 | -2/Protoforge | Spotted V472-u 34544 | -2/Protoforge | Destroyed V532-g 34550 | -2/Protoforge | Destroyed V472-u 34558 | -2/Protoforge | Found Cep. Combat Aerolev Unit 34571 | -2/Protoforge | Destroyed 10 combat bots 34646 | -2/Protoforge | First assault squad dispatched 34664 | -2/Protoforge | Spotted V433-x 34664 | -2/Protoforge | Spotted V482-j 34668 | -2/Protoforge | Incoming assault squad redirected 34671 | -2/Protoforge | Destroyed V433-x 34681 | -2/Protoforge | Destroyed V482-j 34684 | -2/Protoforge | Found Cep. Gyrokinetic System 34692 | -2/Protoforge | Found Prototype Device 34692 | -2/Protoforge | Identified Exp. Thermal Defense Suite 34768 | -2/Protoforge | Spotted Hotshot 34768 | -2/Protoforge | Spotted Hotshot 34768 | -2/Protoforge | Spotted Hotshot 34768 | -2/Protoforge | Spotted Hotshot 34768 | -2/Protoforge | Spotted Decapitator 34768 | -2/Protoforge | Spotted Decapitator 34776 | -2/Protoforge | Destroyed Hotshot 34782 | -2/Protoforge | Destroyed Hotshot 34784 | -2/Protoforge | Destroyed Hotshot 34786 | -2/Protoforge | Destroyed Hotshot 34797 | -2/Protoforge | Spotted Decapitator 34797 | -2/Protoforge | Spotted Decapitator 34798 | -2/Protoforge | Destroyed Decapitator 34802 | -2/Protoforge | Destroyed Decapitator 34838 | -2/Protoforge | Destroyed Decapitator 34931 | -2/Protoforge | Spotted Hotshot 34931 | -2/Protoforge | Spotted Hotshot 34931 | -2/Protoforge | Spotted Hotshot 34931 | -2/Protoforge | Spotted Hotshot 34933 | -2/Protoforge | Destroyed Hotshot 34939 | -2/Protoforge | Destroyed Hotshot 34945 | -2/Protoforge | Destroyed Hotshot 34947 | -2/Protoforge | Destroyed Hotshot 34961 | -2/Protoforge | Spotted V481-y 34961 | -2/Protoforge | Spotted V114-n 34967 | -2/Protoforge | Spotted Immortal 34967 | -2/Protoforge | Spotted Immortal 34993 | -2/Protoforge | Spotted V728-r 34998 | -2/Protoforge | Destroyed V114-n 35004 | -2/Protoforge | Destroyed V481-y 35021 | -2/Protoforge | Destroyed V728-r 35049 | -2/Protoforge | Spotted V137-h 35123 | -2/Protoforge | System corruption reached 10% 35175 | -2/Protoforge | Incoming assault squad redirected 35200 | -2/Protoforge | Found Prototype Energy Cannon 35202 | -2/Protoforge | Found Prototype Ballistic Cannon 35213 | -2/Protoforge | Found Prototype Energy Cannon 35217 | -2/Protoforge | Found Prototype Ballistic Cannon 35237 | -2/Protoforge | Identified Cep. Plasma Driver (x2) 35239 | -2/Protoforge | Identified Cep. Helical Railcannon (x2) 35297 | -2/Protoforge | Spotted AP7-3 35297 | -2/Protoforge | Spotted AP7-3 35298 | -2/Protoforge | Destroyed AP7-3 35310 | -2/Protoforge | Destroyed AP7-3 35331 | -2/Protoforge | Found Cep. Thermoelectric Network 35336 | -2/Protoforge | Found Prototype Device 35338 | -2/Protoforge | Found Prototype Device 35342 | -2/Protoforge | Found Prototype Device 35347 | -2/Protoforge | Identified Cep. Cloak Mesh (x3) 35360 | -2/Protoforge | Found Prototype Device 35370 | -2/Protoforge | Identified Exp. ECM Suite 35378 | -2/Protoforge | Identified Subatomic Replicator 35378 | -2/Protoforge | Used Subatomic Replicator to replicate Cep. Energy Mantle 35386 | -2/Protoforge | Found Cep. XC Strikerail 35420 | -2/Protoforge | Incoming assault squad redirected 35426 | -2/Protoforge | Incoming assault squad redirected 35455 | -2/Protoforge | Found Faulty Cep. XC Strikerail 35515 | -2/Protoforge | Found Prototype Ballistic Cannon 35516 | -2/Protoforge | Identified Cep. Heavy Railcannon 35599 | -2/Protoforge | Found Cep. Lightning Penetrator 35788 | -2/Protoforge | Found Faulty Cep. XC Strikerail 35903 | -2/Protoforge | Destroyed 15 combat bots 36129 | -2/Protoforge | Destroyed 17 combat bots 36166 | -2/Protoforge | Incoming assault squad redirected 36166 | -2/Protoforge | Spotted Decapitator 36167 | -2/Protoforge | Incoming assault squad redirected 36173 | -2/Protoforge | Destroyed Decapitator 36177 | -2/Protoforge | Spotted Decapitator 36179 | -2/Protoforge | Destroyed Decapitator 36214 | -2/Protoforge | Spotted Hotshot 36253 | -2/Protoforge | Core integrity fell below 50% 36261 | -2/Protoforge | High security lockdown imminent 36261 | -2/Protoforge | Destroyed Superfortress 36264 | -2/Protoforge | Warped through subspace 36273 | -2/Protoforge | Lost 3 parts (2u1w) 36314 | -2/Protoforge | Spotted AP7-3 36314 | -2/Protoforge | Spotted AP7-3 36331 | -2/Protoforge | Destroyed AP7-3 36341 | -2/Protoforge | High security lockdown engaged 36354 | -2/Protoforge | Destroyed AP7-3 36362 | -2/Protoforge | Found Exp. ECM Suite 36364 | -2/Protoforge | Found Exp. Targeting Computer 36514 | -2/Protoforge | Spotted Immortal 36538 | -2/Protoforge | Spotted Immortal 36563 | -2/Protoforge | Entered Access 36563 | -1/Access | Evolved 2 slots: Utility x2 36813 | -1/Access | First assault squad dispatched 36834 | -1/Access | Incoming assault squad redirected 36839 | -1/Access | Incoming assault squad redirected 37020 | -1/Access | Build established: Infiltrator-Construct 37077 | -1/Access | Discovered new exit (range 5) 37240 | -1/Access | Spotted B-99 Colossus 37328 | -1/Access | Incoming assault squad redirected 37340 | -1/Access | Incoming assault squad redirected 37341 | -1/Access | Build established: Construct 37578 | -1/Access | Incoming assault squad redirected 37579 | -1/Access | Incoming assault squad redirected 37618 | -1/Access | Identified exit to Command 37776 | -1/Access | Spotted Striker 37837 | -1/Access | Incoming assault squad redirected 37840 | -1/Access | Incoming assault squad redirected 38039 | -1/Access | Spotted B-99 Colossus 38092 | -1/Access | Incoming assault squad redirected 38200 | -1/Access | Spotted Executioner 38202 | -1/Access | Spotted Executioner 38207 | -1/Access | Destroyed Executioner 38211 | -1/Access | Destroyed Executioner 38224 | -1/Access | Spotted Striker 38523 | -1/Access | Destroyed 12 combat bots 38530 | -1/Access | Entered Command 38710 | -1/Command | Spotted Striker 38710 | -1/Command | Spotted Striker 38780 | -1/Command | First assault squad dispatched 38781 | -1/Command | Spotted M Guard 38781 | -1/Command | Spotted M Guard 38781 | -1/Command | Spotted Combat Programmer 38793 | -1/Command | Spotted Combat Programmer 38801 | -1/Command | Destroyed Combat Programmer 38803 | -1/Command | Destroyed Combat Programmer 38815 | -1/Command | Destroyed M Guard 38837 | -1/Command | Destroyed M Guard 38837 | -1/Command | All MAIN.C guards destroyed 38855 | -1/Command | Found Prototype Energy Cannon 39031 | -1/Command | Met MAIN.C 39032 | -1/Command | Hacked MAIN.C using A7's code 39038 | -1/Command | 0b10 Conduit disabled 39041 | -1/Command | Destroyed MAIN.C Shell 39043 | -1/Command | MAIN.C activated Command garrisons 39108 | -1/Command | Destroyed MAIN.C 39120 | -1/Command | Lost 5 parts (2p2u1w) 39122 | -1/Command | Identified Cld. Nova Cannon 39122 | -1/Command | Discovered new exit (range 28) 39122 | -1/Command | Discovered new exit (range 105) 39122 | -1/Command | Extracted map data and part IDs from MAIN.C's data core 39315 | -1/Command | Build established: Scavenger-Construct 39885 | -1/Command | Found Exp. System Purifier 40124 | -1/Command | Found Adv. Micro-nuke Launcher 40555 | -1/Command | Found Corrupted Adv. Kinecellerator 40613 | -1/Command | Found Multirail 42212 | -1/Command | Found Multirail 42317 | -1/Command | Found Vortex Chain Reactor 42318 | -1/Command | Found Zero-point Reactor 42645 | -1/Command | Build established: Construct 42820 | -1/Command | Phase Generator disabled 54875 | -1/Command | Build established: Scavenger-Construct 56030 | -1/Command | Crushed by falling debris 56035 | -1/Command | Crushed by falling debris 56039 | -1/Command | Crushed by falling debris 56070 | -1/Command | Lost 3 parts (3u) 56107 | -1/Command | Found Centrium Heavy Armor Plating 56161 | -1/Command | Found Hvy. Regenerative Plating 56312 | -1/Command | Build established: Construct 57126 | -1/Command | Crushed by falling debris 57144 | -1/Command | Crushed by falling debris 57279 | -1/Command | Crushed by falling debris 57280 | -1/Command | Crushed by falling debris 57283 | -1/Command | Crushed by falling debris 57840 | -1/Command | Crushed by falling debris 57847 | -1/Command | Crushed by falling debris 57931 | -1/Command | Crushed by falling debris 57944 | -1/Command | Crushed by falling debris 57951 | -1/Command | Crushed by falling debris 57961 | -1/Command | Crushed by falling debris 57969 | -1/Command | Crushed by falling debris 57978 | -1/Command | Crushed by falling debris 57982 | -1/Command | Lost 3 parts (3u) 57988 | -1/Command | Crushed by falling debris 58030 | -1/Command | Found Prototype Device 58030 | -1/Command | Identified Femtoactuators 58320 | -1/Command | Build established: Scavenger-Construct 58985 | -1/Command | Found Zero-point Reactor 59220 | -1/Command | Crushed by falling debris 59228 | -1/Command | Crushed by falling debris 59229 | -1/Command | Crushed by falling debris 59254 | -1/Command | Crushed by falling debris 59262 | -1/Command | Crushed by falling debris 59274 | -1/Command | Crushed by falling debris 59276 | -1/Command | Crushed by falling debris 59278 | -1/Command | Crushed by falling debris 59279 | -1/Command | Core integrity fell below 50% 59280 | -1/Command | Crushed by falling debris 59288 | -1/Command | Crushed by falling debris 59291 | -1/Command | Crushed by falling debris 59294 | -1/Command | Crushed by falling debris 59295 | -1/Command | System corruption reached 10% 59317 | -1/Command | Crushed by falling debris 59325 | -1/Command | Lost 4 parts (1p3u) 59326 | -1/Command | Crushed by falling debris 59330 | -1/Command | Crushed by falling debris 59333 | -1/Command | Crushed by falling debris 59343 | -1/Command | Crushed by falling debris 59350 | -1/Command | Crushed by falling debris 59370 | -1/Command | Crushed by falling debris 59371 | -1/Command | Core integrity fell below 20% 59429 | *** | Establishing 0b11! Last Messages --------------- 59330_ Cep. Energy Mantle destroyed. 59330_ System corrupted by crushing effect (+1). 59333_ The unstable cave ceiling collapses. 59333_ Crushed by falling debris. 59337_ 71OM#|%QAV7 KNVE>PX%DM 59341_ The unstable cave ceiling collapses. 59343_ Crushed by falling debris. 59343_ Cep. Antigrav Storage Unit destroyed. 59343_ System corrupted by crushing effect (+4). 59343_ Micro-nuke Launcher crushed. 59344_ The unstable cave ceiling collapses. 59350_ Crushed by falling debris. 59354_ Overheating: System interference. 59354_ Hvy. Regenerative Plating temporarily disabled. 59370_ The unstable cave ceiling collapses. 59370_ Crushed by falling debris. 59382_ System corrupted: Energy discharge (-348). [Achievement: True Cogmind] Map ----- +----------------------------------------------------+ | ###?##?### """|[=##??# ###+###+#### #?#?##### | | #####?#### """"=%#??## # = # #?#?# """ | | #?###??#?# """"[!###?# # # ##### " | | #?###?#?## *!###?# # + ###?#!""" | | ######???# "##?# " " " #?#!""" | | ##?###?#?# " #?# # # ###?# | | ???###?#?#####+"" " ### ############ ###?#"" | | ##??######### " # ############ #?###"" | | #####??# # " ## + """ # #?#?# "= | | #?#?#?## # ""### # ""T"" # #?### *! | | ######## # " ## # "" "" # #?##=[!! | | ######?# # # ## # # #?# # | | ######## + ! # # #?#?#"" | | # # [ # == # #?#?# | | + # # == # #?### | | # # # # ##### | | ####"" # # | | + ! # " ! | | # " " | | ]!= # ""###### + "######### " | | ]! " "####### # ##?#??#### " | | ]! " # ## # ####?#?### | | #"##+## [ # ## #########+#######?####### | | ## # # ## #### ##?##?#??# | | ## #! # ## ## #?######## | | ## # # ## @ ## #??#####?# | | ## # # ## ## ##?####?## | | ## + # ######## == ###?#####? | | ## # + ##?##?## = #?#?###### | | ## # # #?###### ######?### | | ## # # ###?#######+###########?##### | | ## # # #???####?# ######?######### | | ## + # #??####?## #?######?#### | | ## " ################ ##+####?######## | | ## # #??###] ] ## ## ##?#?#?### | | ######## ##?#?# ## ## ########## | | ######## ###### "" ## ## ##??###?## | | # """"## ## ####??#### | | + """"## ###+########?#?#? | | "#########""" ####+# "" ## # ####?###? | | # # # [ # ! ## # ######?## | | # # + # ## # | ######### | | # + # ]]############ # ###?###?# | | # # # ] ##########"" # ######### | | # # # ##########"T # ######### | | # # # ############ # ######### | | + # # + # ######### | | # # # ! ###### + ######### | | # # # ####### # ######### | | # # ############ # ##?###### | +----------------------------------------------------+ Best States ------------- Heat Dissipation 108 Energy Generation 122 Energy Capacity 4488 Matter Stores 800 Matter Capacity 800 Sight Range 23 Robot Scan Range 16 Terrain Scan Range 24 Terrain Scan Density 10 ECM Strength 3 Jamming Range 16 Cloak Strength 9 Armor Coverage 825 Resistance: KI 25 Resistance: TH 75 Resistance: EM 75 Utility Shielding 66 Weapon Shielding 90 Point Defense Rating 480 Phase Shifting 25 Evasion (%) 84 Targeting Accuracy 12 Launcher Accuracy 40 Core Analysis 8 Recoil Reduction 7 Particle Charging 40 Kinecelleration 66 Item Schematics ----------------- Combat Drone Bay | -6/Data Miner | Free Lgt. Regenerative Plating | -6/Data Miner | Free Exp. Cesium-ion Thruster | -6/Data Miner | Free Exp. Heat Sink | -6/Data Miner | Free Tiamat Missile Launcher | -6/Data Miner | Free Adv. Transmission Jammer | -6/Data Miner | Free HERF Cannon | -6/Data Miner | Free Centrium Wheel | -6/Data Miner | Free Myomer Leg | -6/Data Miner | Free Imp. Arc Thrower | -5/Zhirov | Free Assault Drone Bay | -5/Zhirov | Free Exp. Optical Array | -5/Zhirov | Free Exp. Biometal Medium Treads | -2/Protoforge | Archive Adv. KE Penetrator | -2/Protoforge | Archive Plasma Sword | -2/Protoforge | Archive Exp. Thermal Shield | -2/Protoforge | Archive Com. Mass Driver | -2/Protoforge | Archive Robot Schematics ------------------ X-67 Chaingunner | -6/Data Miner | Free I-36 Angel | -6/Data Miner | Free O-32 Director | -6/Data Miner | Free G-67 Veteran | -6/Data Miner | Free E-15 Imp | -6/Data Miner | Free B-48 Gladiator | -6/Data Miner | Free B-60 Warrior | -6/Data Miner | Free Fabricated ------------ Adv. Heat Sink | x2 | -6/Factory | Preloaded Repaired ---------- Nothing Studied --------- Railgun | -5/Factory | Hacked Myomer Leg | -3/Research | Hacked Enh. Gauss Cannon | -3/Research | Hacked Lgt. Particle Reactor | -3/Quarantine | Hacked Alien Tech Used ----------------- Integrated Reactor Phase Redirector Sigix Broadsword Core Stripper Subatomic Replicator Transdimensional Reconstructor Achievements -------------- This Is My Hole True Cogmind Challenges ------------ None Game ------ Seed SuperquantumAlphaReplica Manual? 0 Play Time 07:42:38 Cumulative 416.2 hours Start 2026.09.14 @ 23:46:41 End 2026.09.15 @ 23:34:41 Sessions 9 Manual Loads 0 Difficulty Rogue Special Mode None Game No. 360 Rogue 306 Adventurer 54 Explorer 0 Win Type 1 Total 25 Types 15/2/1/1/1/1/1/1/1/1 Lore% 83 Gallery% 71 Achievement% 72 Wizard Run 0 Options --------- Layout 1 ASCII 0 Keyboard 0 Movement Mouse Keybinds 1 Fullscreen 2 Font 32/Tamsyn Map View 50x35 Zoom Use 0% Tactical HUD 1 Map Filters NONE Filters NONE Steam 1 RUN: e248a371-db27-4387-ad23-446045cae87b